Cogmind - Beta 10.2 --- EXPLORER MODE // 2021.06.16 @ 21:28:00 // Winter2019/RPGLIKE Player: H_ Result: Escaped! Performance ------------- Evolutions (9) 4500 Regions Visited (35) 7000 Robots Destroyed (1049) 5245 Value Destroyed (58231) 58231 Prototype IDs (214) 4280 Alien Tech Used (15) 3000 Bonus (38439) 38439 TOTAL SCORE: 120695 Bonus ------- Triggered Max Security 2000 High Alert Combat Kills 23324 Follower Combat Kills 2065 Met Data Miner 300 Met Imprinter 300 Met Zhirov 300 Found Hidden Lab 3000 Hacked Protovariant 500 Scanned by Researcher 500 Pursued by Intercept 3000 Acquired SGEMP 2000 Met Sigix 2000 Activated Exoskeleton 3000 Win 3000 Friendly Fire -6850 Cogmind --------- Core Integrity 145/600 Matter 83/1900 Energy 422/440 System Corruption 0% Temperature Cool (18) Movement Flying (10) Location To Epsilon Eridani Parts ------- > --- POWER (3) -------- Mini Fusion Reactor Mini Fusion Reactor Mini Fusion Reactor > --- PROPULSION (6) --- Cooled Field Propulsion Drive Improved Q-thruster Experimental Q-thruster Experimental Q-thruster Experimental Q-thruster Experimental Q-thruster > --- UTILITY (11) ----- YI-UF0's Bottomless Matter Pit Experimental Signal Interpreter Experimental Target Analyzer Advanced Armor Integrity Analyzer Advanced Reaction Control System Experimental Phase Shifter Centrium Light Armor Plating Experimental Focal Shield Thermal Barrier Experimental Shock Absorption System EM Dispersion Field > --- WEAPON (6) ------- XL Autogun Array Perforator > --- INVENTORY (10) --- Experimental Q-thruster Experimental Energy Well (1000) Experimental Terrain Scanner Transdimensional Reconstructor High-powered Transdimensional Reconstructor Subatomic Replicator Peak State ------------ > --- POWER ------------ Mini Fusion Reactor Mini Fusion Reactor Mini Fusion Reactor > --- PROPULSION ------- Improved Q-thruster Experimental Q-thruster Experimental Q-thruster Experimental Q-thruster Experimental Q-thruster Experimental Q-thruster > --- UTILITY ---------- Experimental Energy Well Experimental Sensor Array Experimental Signal Interpreter Advanced Armor Integrity Analyzer Advanced Reaction Control System Experimental Phase Shifter Experimental Focal Shield Thermal Barrier Experimental Shock Absorption System EM Dispersion Field Deep Network Scanner > --- WEAPON ----------- XL Autogun Array Perforator > --- INVENTORY -------- YI-UF0's Bottomless Matter Pit Transdimensional Reconstructor High-powered Transdimensional Reconstructor Subatomic Replicator Terrabomb Terrabomb SGEMP Prototype Sigix Containment Pod [Rating: 253] Favorites ----------- Power Micro Fission Core Engine Light Ion Engine Power Core Micro Fission Core Reactor Mini Fusion Reactor Propulsion Experimental Cesium-ion Thruster Flight Unit Experimental Cesium-ion Thruster Utility Improved System Shield Device Experimental Sensor Array Storage YI-UF0's Bottomless Matter Pit Processor Experimental Signal Interpreter Hackware Improved System Shield Protection Centrium Medium Armor Plating Artifact Matter Drive Weapon XL Autogun Array Energy Gun Hypervelocity EM Gauss Rifle Energy Cannon Potential Cannon Ballistic Gun XL Autogun Array Ballistic Cannon Perforator Launcher Precision Rocket Launcher Special Weapon Improved Remote Datajack Impact Weapon Shock Maul Piercing Weapon Makeshift Spear Build | -11 -10 -10 -10 -9 -8 -7 -7 -7 -7 -6 -6 -6 -6 -6 -6 -6 -5 -5 -5 -5 -5 -5 -5 -4 -4 -4 -4 -4 -4 -3 -3 -2 -2 -2 -1 ------- Run | Scr Mat Min Exi Min Mat Fac Low Low Dat Pro Fac Was Fac Low Low Zio Pro Fac Was Fac Upp Upp Zhi Pro Fac Was Fac Arm Lab Res Qua Res Tes Sec Acc Slots Evolved 20 | 1 . . 6 . 3 3 . 1 . . 1 . 1 . . . . . . . . . . . . . . . . 2 . 2 . . . Power 2 | . . . . . 1 . . . . . . . . . . . . . . . . . . . . . . . . 1 . . . . . Propulsion 4 | . . . 1 . 1 1 . . . . . . . . . . . . . . . . . . . . . . . 1 . . . . . Utility 9 | 1 . . 2 . 1 1 . 1 . . 1 . 1 . . . . . . . . . . . . . . . . . . 1 . . . Weapon 5 | . . . 3 . . 1 . . . . . . . . . . . . . . . . . . . . . . . . . 1 . . . Parts Attached 380 | 3 6 4 5 13 17 24 2 1 . 4 6 2 15 . . 4 2 31 . 14 1 4 4 5 15 2 16 15 30 46 20 22 17 19 11 Power 16 | 1 . . . . 1 2 . . . . . . . . . . . 2 . 3 . . . . . . . . 2 4 . . . . 1 Engine 2 | 1 . . . . 1 . . . . . . . . . . . . . . . . . . . . . . . . . . . . . . Core 4 | . . . . . . 2 . . . . . . . . . . . 1 . 1 . . . . . . . . . . . . . . . Reactor 10 | . . . . . . . . . . . . . . . . . . 1 . 2 . . . . . . . . 2 4 . . . . 1 Propulsion 42 | . 1 . 1 . 3 9 . . . . 1 . 2 . . . . 3 . . . . . . . . . . . 11 . 7 . 2 2 Treads . | . . . . . . . . . . . . . . . . . . . . . . . . . . . . . . . . . . . . Leg . | . . . . . . . . . . . . . . . . . . . . . . . . . . . . . . . . . . . . Wheel . | . . . . . . . . . . . . . . . . . . . . . . . . . . . . . . . . . . . . Hover . | . . . . . . . . . . . . . . . . . . . . . . . . . . . . . . . . . . . . Flight 42 | . 1 . 1 . 3 9 . . . . 1 . 2 . . . . 3 . . . . . . . . . . . 11 . 7 . 2 2 Utility 254 | 1 1 2 . 10 11 9 2 1 . 2 4 2 11 . . 4 2 25 . 10 1 4 4 3 12 2 16 10 20 29 16 10 6 16 8 Device 204 | 1 1 2 . 9 5 6 2 1 . 2 2 2 9 . . 4 2 24 . 9 1 4 4 3 9 2 16 10 13 25 12 8 6 6 4 Storage 25 | . . . . 1 4 . . . . . . . . . . . . . . . . . . . . . . . 3 2 1 2 . 10 2 Processor 4 | . . . . . 1 . . . . . . . 1 . . . . . . . . . . . 1 . . . . . . . . . 1 Hackware 13 | . . . . . 1 3 . . . . 2 . 1 . . . . 1 . 1 . . . . 2 . . . 2 . . . . . . Protection 7 | . . . . . . . . . . . . . . . . . . . . . . . . . . . . . 2 2 2 . . . 1 Artifact 1 | . . . . . . . . . . . . . . . . . . . . . . . . . . . . . . . 1 . . . . Weapon 68 | 1 4 2 4 3 2 4 . . . 2 1 . 2 . . . . 1 . 1 . . . 2 3 . . 5 8 2 4 5 11 1 . Energy Gun 14 | . . 1 . . . . . . . . . . . . . . . . . . . . . 1 . . . . 3 1 2 3 3 . . Energy Cannon 3 | . . . . . . . . . . . . . . . . . . . . . . . . . . . . . 1 . . . 2 . . Ballistic Gun 9 | 1 2 . 2 1 1 1 . . . . . . . . . . . . . . . . . . . . . . 1 . . . . . . Ballistic Cannon 5 | . . . . . . . . . . . . . . . . . . . . . . . . . 1 . . . . . 1 . 2 1 . Launcher 11 | . . . . 1 1 2 . . . 1 1 . 2 . . . . 1 . . . . . . . . . 1 . 1 . . . . . Special Weapon 24 | . 2 1 1 1 . 1 . . . 1 . . . . . . . . . 1 . . . 1 2 . . 4 3 . . 2 4 . . Impact Weapon 1 | . . . . . . . . . . . . . . . . . . . . . . . . . . . . . . . 1 . . . . Slashing Weapon . | . . . . . . . . . . . . . . . . . . . . . . . . . . . . . . . . . . . . Piercing Weapon 1 | . . . 1 . . . . . . . . . . . . . . . . . . . . . . . . . . . . . . . . Special Melee Weapon . | . . . . . . . . . . . . . . . . . . . . . . . . . . . . . . . . . . . . Unidentified Prototypes 50 | . . 1 1 3 . . . . . . . . . . . 2 . . . . . . 2 1 . . . 1 10 4 7 4 6 8 . Parts Lost 2 | . . . . . . . . . . . . . . . . . . . . . . . . . . . . . . . . 1 1 . . Power . | . . . . . . . . . . . . . . . . . . . . . . . . . . . . . . . . . . . . Propulsion . | . . . . . . . . . . . . . . . . . . . . . . . . . . . . . . . . . . . . Utility 1 | . . . . . . . . . . . . . . . . . . . . . . . . . . . . . . . . 1 . . . Weapon 1 | . . . . . . . . . . . . . . . . . . . . . . . . . . . . . . . . . 1 . . Highest Loss Streak 1 | . . . . . . . . . . . . . . . . . . . . . . . . . . . . . . . . 1 1 . . Average Slot Usage (%) 81 | . 77 99 51 55 72 79 81 82 83 83 81 85 81 85 85 85 85 85 85 85 85 85 85 85 84 85 85 85 84 86 86 87 86 83 83 Engine 2 | . 20 20 9 9 12 9 . . . . . . . . . . . . . . . . . . . . . . . . . . . . . Core 5 | . . . . . . 2 11 11 11 11 10 10 9 9 9 9 9 8 9 7 . . . . . . . . . . . . . . . Reactor 3 | . . . . . . . . . . . . . . . . . . . . 1 9 9 9 9 9 9 9 9 9 11 12 11 11 11 10 Flight 21 | . . 20 9 9 19 19 23 22 22 22 22 25 24 23 23 23 23 23 23 23 23 23 23 23 23 23 23 23 22 24 25 23 23 23 23 Device 21 | . 37 39 19 26 18 13 10 15 16 16 14 20 21 23 23 23 23 23 23 22 23 23 23 23 22 23 23 33 28 22 20 20 25 25 26 Processor 3 | . . . . . 7 3 . . . . . . . 4 4 4 4 4 4 4 4 4 4 4 5 9 9 9 9 8 8 7 7 7 10 Hackware 13 | . . . . . 5 17 23 22 22 22 23 20 18 14 14 14 14 14 14 15 14 14 14 14 12 9 8 . 4 8 8 7 3 3 . Ballistic Gun 4 | . 14 18 5 5 7 5 5 5 5 5 5 5 4 4 4 4 4 4 4 4 4 4 4 4 4 4 4 4 4 4 4 3 3 3 3 Launcher 2 | . . . . 2 . 2 5 5 5 3 4 5 1 4 4 4 4 4 4 1 . . . . . . . . . . . . . . . Special Weapon 1 | . 5 1 4 3 . 1 . . . 1 . . . . . . . . . 2 4 4 4 4 3 4 4 4 2 . . 3 1 . . Naked Turns . | . . . . . . . . . . . . . . . . . . . . . . . . . . . . . . . . . . . . Heaviest Build 79 | 6 7 7 20 34 31 37 37 39 39 39 43 43 41 40 40 40 42 45 39 42 43 43 45 45 45 43 47 53 54 68 61 67 71 77 79 Greatest Support 85 | 8 9 9 14 18 34 50 50 50 50 50 62 57 70 42 58 58 58 58 55 55 55 55 55 55 55 55 55 55 55 69 65 76 76 81 85 Greatest Overweight (x) 2 | . . . 1 2 1 1 . . . . . . . . . . . . . . . . . . . . . . . 1 . 2 . 2 2 Average Overweight (x) . | . . . . . . . . . . . . . . . . . . . . . . . . . . . . . . . . . . . . Largest Inventory Capacity 10 | 1 1 1 2 2 2 3 3 3 3 6 6 6 6 6 6 6 6 6 6 6 6 6 6 6 7 7 7 8 8 8 8 8 8 10 10 Average Capacity 5 | 1 1 1 1 2 2 2 3 3 3 5 6 6 6 6 6 6 6 6 6 6 6 6 6 6 6 7 7 7 8 8 8 8 8 9 10 Most Carried 10 | 1 1 1 1 2 2 3 3 3 3 3 4 4 6 5 5 6 6 6 6 6 6 6 6 6 7 7 7 8 8 8 8 8 8 10 10 Average Carried 4 | . 1 . . 1 1 2 3 2 3 2 3 4 4 5 5 5 6 5 6 5 5 5 5 5 6 7 6 7 7 7 7 7 7 8 8 Final Capacity 10 | 1 1 1 2 2 2 3 3 3 3 6 6 6 6 6 6 6 6 6 6 6 6 6 6 6 7 7 7 8 8 8 8 8 8 10 10 Final Carried 10 | 1 1 1 . 2 1 3 3 3 3 3 4 4 5 5 5 6 6 6 6 6 5 6 6 6 7 7 7 8 8 7 8 6 8 10 6 Class Distribution -------------------- 78% | Wizard-Scout 8% | Hacker-Scout 4% | Hacker-Skirmisher 3% | Machinist-Scout Dominant Class ---------------- Hacker-Scout | -10/Materials Hacker-Scout | -10/Mines Hacker-Skirmisher | -10/Exiles Hacker-Skirmisher | -9/Mines Hacker-Scout | -8/Materials Wizard-Scout | -7/Factory Wizard-Scout | -7/Lower Caves Wizard-Scout | -7/Lower Caves Wizard-Scout | -7/Data Miner Wizard-Scout | -6/Proximity Caves Wizard-Scout | -6/Factory Wizard-Scout | -6/Waste Wizard-Scout | -6/Factory Wizard-Scout | -6/Lower Caves Wizard-Scout | -6/Lower Caves Wizard-Scout | -6/Zion Wizard-Scout | -5/Proximity Caves Wizard-Scout | -5/Factory Wizard-Scout | -5/Waste Wizard-Scout | -5/Factory Wizard-Scout | -5/Upper Caves Wizard-Scout | -5/Upper Caves Wizard-Scout | -5/Zhirov Wizard-Scout | -4/Proximity Caves Wizard-Scout | -4/Factory Wizard-Scout | -4/Waste Wizard-Scout | -4/Factory Machinist-Scout | -4/Armory Wizard-Scout | -4/Lab Wizard-Scout | -3/Research Wizard-Scout | -3/Quarantine Wizard-Scout | -2/Research Wizard-Scout | -2/Testing Wizard-Scout | -2/Section 7 Generator-Scout | -1/Access Resources | -11 -10 -10 -10 -9 -8 -7 -7 -7 -7 -6 -6 -6 -6 -6 -6 -6 -5 -5 -5 -5 -5 -5 -5 -4 -4 -4 -4 -4 -4 -3 -3 -2 -2 -2 -1 ----------- Run | Scr Mat Min Exi Min Mat Fac Low Low Dat Pro Fac Was Fac Low Low Zio Pro Fac Was Fac Upp Upp Zhi Pro Fac Was Fac Arm Lab Res Qua Res Tes Sec Acc Matter Collected 44220 | 269 138 107 343 1960 680 1198 203 134 . 610 1690 . 1469 360 376 99 590 1965 30 1654 234 372 137 878 1589 325 1900 2149 636 3996 658 2228 2010 5150 8083 Remotely . | . . . . . . . . . . . . . . . . . . . . . . . . . . . . . . . . . . . . Salvage Created 54746 | 105 149 373 352 1460 344 1167 99 228 . 566 2327 . 2826 761 524 . 894 2621 . 1893 464 499 137 744 3032 1604 3068 3157 . 5706 653 1383 895 6225 10490 Parts 2781 | 6 3 23 22 59 61 81 8 8 . 36 167 . 151 35 24 . 35 205 . 124 30 17 2 49 140 29 140 193 14 297 29 74 19 226 474 Haulers Intercepted 4 | . . . . . . . . . . . 1 . . . . . . . . . . . . . . . . . . . . 1 . . 2 Recyclers Shooed 7 | . . 1 . 2 . . . . . . . . . . . . . . . . . . . . 1 . . . . . . 2 . . 1 Parts Field Recycled . | . . . . . . . . . . . . . . . . . . . . . . . . . . . . . . . . . . . . Retrieved Matter . | . . . . . . . . . . . . . . . . . . . . . . . . . . . . . . . . . . . . Parts Self-Destructed . | . . . . . . . . . . . . . . . . . . . . . . . . . . . . . . . . . . . . Prevented . | . . . . . . . . . . . . . . . . . . . . . . . . . . . . . . . . . . . . Kills | -11 -10 -10 -10 -9 -8 -7 -7 -7 -7 -6 -6 -6 -6 -6 -6 -6 -5 -5 -5 -5 -5 -5 -5 -4 -4 -4 -4 -4 -4 -3 -3 -2 -2 -2 -1 ------- Run | Scr Mat Min Exi Min Mat Fac Low Low Dat Pro Fac Was Fac Low Low Zio Pro Fac Was Fac Upp Upp Zhi Pro Fac Was Fac Arm Lab Res Qua Res Tes Sec Acc Combat Hostiles Destroyed 826 | . 4 . . 2 20 28 2 3 . 13 46 . 44 13 13 . 16 57 . 36 15 11 . 16 41 6 42 61 1 89 10 25 4 77 131 Guns 689 | . 4 . . . 20 28 2 3 . 13 46 . 43 13 13 . 16 55 . 36 15 11 . 16 40 6 41 61 . 89 10 25 4 32 47 Cannons 134 | . . . . 2 . . . . . . . . . . . . . . . . . . . . 1 . 1 . 1 . . . . 45 84 AOE 3 | . . . . . . . . . . . . . 1 . . . . 2 . . . . . . . . . . . . . . . . . Classes Destroyed 30 | 2 2 2 . 3 2 1 1 . . 2 1 . 3 1 . . . . . . . . . . . 1 . 2 . 1 . . 2 2 2 Worker 24 | . . 2 . 3 . 3 . . . . 1 . 1 . . . . 1 . . . . . . 2 . . . . 3 . 1 . 1 6 Builder 15 | . . 1 . 3 . . . . . . . . . . . . . 1 . . . . . . . . . . . 2 . 2 . 1 5 Tunneler 9 | 2 . 1 . 4 . . . . . . . . . . . . . 1 . . . . . . . . . . . . . . . . 1 Hauler 4 | . . . . . . . . . . . 1 . . . . . . . . . . . . . . . . . . . . 1 . . 2 Recycler 19 | 1 . 3 . 7 . . . . . . . . 1 . . . . . . . . . . . . . . . . . . . . . 7 Carrier 10 | . . . . . . . . . . . . . . . . . . . . . . . . . . . . . . . . . . 3 7 Minesweeper 6 | . . . . . . . 1 1 . 1 . . . 1 1 . . . . . . . . 1 . . . . . . . . . . . Mechanic 7 | . . . . . . . . . . 1 . . . . . . . . . . . . . . . . . 1 . . . . . 1 4 Operator 13 | . . . . . . . . . . . . . 2 . . . . . . . . . . . 2 . . 1 . 3 3 . 1 . 1 Drone 3 | . . . . 1 . . . . . . . . . . . . . 1 . . . . . . . . . . . . . . 1 . . Watcher 94 | . . . . . 3 6 . . . . 8 . 5 . . . . 10 . 10 . . . . 10 . 9 5 . 10 2 5 1 4 6 Swarmer 153 | . 2 . . . 11 8 . 2 . 5 2 . 5 2 2 . 3 13 . 7 10 6 . 6 11 . 12 15 . 16 . . . 3 12 Saboteur 19 | . . . . . . . . . . . . . . . . . . . . . . . . . . . . 5 . 1 . . . 4 9 Grunt 266 | . 2 . . 5 1 9 1 . . 5 21 . 19 5 7 . 10 24 . 10 4 4 . 3 10 . 9 18 . 22 3 4 . 28 42 Brawler 27 | . . . . 1 . . . . . . 1 . 1 . 2 . 1 . . 2 . . . . 1 . 1 . . 2 . . . 5 10 Duelist 19 | . . . . . . 1 . . . 1 3 . 3 . . . . . . . . . . . . . 1 . . 3 1 . . 2 4 Protector 5 | . . . . . . . . . . . . . . . . . . . . . . . . . . . . . . 1 . . . 1 3 Researcher 9 | . . . . . . . . . . . . . . . . . . . . . . . . . . . . . . . . . 1 8 . Sentry 117 | . . . . . 7 10 1 1 . 2 10 . 9 . 1 . 1 11 . 8 1 1 . 1 9 . 11 9 . 8 . 1 . 9 6 Demolisher 5 | . . . . . . . . . . . . . 1 . . . . . . . . . . . . . . 4 . . . . . . . Specialist 2 | . . . . . . . . . . . . . . . . . . . . . . . . . . . . 2 . . . . . . . Hunter 64 | . . . . 1 1 . . . . . 4 . 4 1 . . . 4 . 5 . . . 4 6 . 4 . . 12 2 2 . 8 6 Programmer 68 | . . . . . . . . . . 1 5 . 1 1 . . . 6 . 3 . . . 2 4 . 4 7 . 9 . 3 . 6 16 Behemoth 11 | . . . . . . . . . . . . . 1 . 1 . 1 . . 1 . . . 1 . . . 1 . 1 . . . 1 3 Compactor 6 | . . . . . . . . . . . . . . . . . . . . . . . . . . 6 . . . . . . . . . S7 Guard 1 | . . . . . . . . . . . . . . . . . . . . . . . . . . . . . . . . . . 1 . Enhanced Grunt 1 | . . . . . . . . . . 1 . . . . . . . . . . . . . . . . . . . . . . . . . Tracker 26 | . . . . . . . . . . . . . . . . . . . . . . . . . . . . . . 8 2 8 2 4 2 Combat Programmer 21 | . . . . . . . . . . . . . . . . . . . . . . . . . . . . . . 6 2 7 . 4 2 Investigator 1 | . . . . . . . . . . . . . . . . . . . . . . . . . . . . . . . . . . . 1 Striker 9 | . . . . . . . . . . . . . . . . . . . . . . . . . . . . . . . . . . . 9 Executioner 7 | . . . . . . . . . . . . . . . . . . . . . . . . . . . . . . . . . . . 7 Alpha 7 1 | . . . . . . . . . . . . . . . . . . . . . . . . . . . . . . . . . . 1 . Fortress 1 | . . . . . . . . . . . . . . . . . . . . . . . . . . . . . . . . . 1 . . Thug 2 | . . 1 . . . . . . . . . . . 1 . . . . . . . . . . . . . . . . . . . . . Fireman 3 | . . . . . . . . . . . . . . 3 . . . . . . . . . . . . . . . . . . . . . Best Kill Streak 70 | 2 2 4 . 4 8 6 1 2 . 4 8 . 8 4 3 . 6 22 . 15 7 11 . 7 8 6 10 18 1 21 7 10 3 70 65 Combat Bots Only 54 | . 2 . . 2 7 5 1 2 . 3 7 . 8 4 3 . 6 16 . 9 7 11 . 6 7 6 8 15 1 19 7 9 2 54 47 Max Kills in Single Turn 8 | 1 1 1 . 1 2 1 1 1 . 1 2 . 2 1 1 . 1 2 . 1 1 2 . 3 3 1 2 2 1 2 1 2 1 8 4 Gunslinging . | . . . . . . . . . . . . . . . . . . . . . . . . . . . . . . . . . . . . Exploded 2 | . . . . . . . . . . . . . 1 . . . . 2 . . . . . . . . . . . . . . . . . Melee . | . . . . . . . . . . . . . . . . . . . . . . . . . . . . . . . . . . . . Uniques/NPCs Destroyed 5 | . . . . 1 . . . . . . . . . . . . . . . . . . . . . . . . 1 . . . . . 3 YI-UF0 (-9/Mines) A5 (-4/Lab) Zhirov (-1/Access) Svarog (-1/Access) Perun (-1/Access) Combat | -11 -10 -10 -10 -9 -8 -7 -7 -7 -7 -6 -6 -6 -6 -6 -6 -6 -5 -5 -5 -5 -5 -5 -5 -4 -4 -4 -4 -4 -4 -3 -3 -2 -2 -2 -1 -------- Run | Scr Mat Min Exi Min Mat Fac Low Low Dat Pro Fac Was Fac Low Low Zio Pro Fac Was Fac Upp Upp Zhi Pro Fac Was Fac Arm Lab Res Qua Res Tes Sec Acc Damage Taken 7638 | . 83 . . 128 156 229 18 21 . 136 304 . 304 65 151 . 126 411 . 246 73 124 . 212 473 . 223 212 29 871 204 582 332 534 1391 Core 5741 | . 69 . . 105 118 176 14 17 . 110 229 . 238 50 118 . 102 327 . 191 58 96 . 163 375 . 177 166 21 632 152 401 250 388 998 Absorbed by Shields 258 | . . . . . . . . . . . . . . . . . . . . . . . . . . . . . . . . . . 92 166 Redirected to Core 4975 | . 37 . . 66 112 142 11 10 . 79 224 . 197 50 104 . 72 273 . 183 46 85 . 163 314 . 144 132 18 549 132 340 223 348 921 Core Remaining (%) 90 | 100 . . . 100 97 . . . . 100 . . . . . . 83 . . . . . . 98 . . . . 100 . 100 . . 99 24 Volleys Fired 2068 | 13 29 30 18 151 34 69 12 7 . 40 106 . 86 23 29 . 38 117 9 75 18 20 6 34 97 21 101 149 22 235 38 106 45 132 158 Largest 2 | 1 1 1 1 1 1 1 1 1 . 1 1 . 1 2 1 . 1 1 1 1 1 1 1 1 2 1 1 1 2 1 1 2 1 2 2 Hottest 160 | 20 100 20 60 60 60 60 60 60 . 60 60 . 60 103 60 . 60 60 80 60 60 60 60 60 80 60 60 60 80 60 60 140 100 160 160 Shots Fired 2277 | 13 29 30 18 151 34 69 12 7 . 40 106 . 86 24 29 . 38 117 9 75 18 20 6 34 101 21 101 148 23 235 38 111 45 173 316 Gun 1876 | 13 26 30 18 22 34 67 12 7 . 40 106 . 86 23 29 . 38 116 5 74 17 20 6 31 95 21 100 126 10 235 38 111 40 122 158 Cannon 213 | . . . . . . . . . . . . . . . . . . . . . . . . . . . . . . . . . 4 51 158 Launcher 6 | . . . . . . . . . . . . . . 1 . . . 1 4 . . . . . . . . . . . . . . . . Special 182 | . 3 . . 129 . 2 . . . . . . . . . . . . . 1 1 . . 3 6 . 1 22 13 . . . 1 . . Kinetic 2081 | 13 26 30 18 22 34 67 12 7 . 40 106 . 86 23 29 . 38 116 5 74 17 20 6 31 95 21 100 126 10 235 38 103 44 173 316 Thermal 150 | . 3 . . 129 . . . . . . . . . . . . . . . . . . . . 4 . 1 . 13 . . . . . . Explosive 6 | . . . . . . . . . . . . . . 1 . . . 1 4 . . . . . . . . . . . . . . . . Electromagnetic 8 | . . . . . . . . . . . . . . . . . . . . . . . . . . . . . . . . 8 . . . Robot Hit Streak 75 | 7 14 21 27 29 16 27 23 28 . 65 41 . 38 32 56 . 59 41 25 55 18 30 27 75 57 38 57 53 60 50 50 63 45 54 48 Robot Miss Streak 10 | 1 1 1 2 3 2 2 1 2 . 4 4 . 3 1 1 . 1 2 . 1 1 3 . 1 2 1 2 2 1 5 2 3 2 6 10 Penetration Max 3 | . . . . . . . . . . . . . . . . . . . . . . . . . . . . . . . . . . 3 3 Secondary Targets . | . . . . . . . . . . . . . . . . . . . . . . . . . . . . . . . . . . . . Shots Hit Robots 2110 | 12 23 29 25 125 30 64 6 7 . 37 101 . 83 24 29 . 38 114 8 72 17 19 6 33 97 21 92 132 19 223 32 104 36 157 295 Core Hits 2509 | 4 6 11 20 75 25 58 5 7 . 38 103 . 100 28 27 . 34 123 2 74 18 18 8 33 101 18 106 140 15 264 39 102 53 330 524 Critical Hits 538 | . . . . 18 . . . . . . . . . . . . . . . . . . . . 2 . . . 3 . . . 9 144 362 Critical Kills 168 | . . . . 9 . . . . . . . . . . . . . . . . . . . . 1 . . . . . . . . 48 110 Critical Parts Destroyed 299 | . . . . 8 . . . . . . . . . . . . . . . . . . . . 1 . . . 3 . . . 3 76 208 Melee Attacks 7 | . . . 7 . . . . . . . . . . . . . . . . . . . . . . . . . . . . . . . . Impact . | . . . . . . . . . . . . . . . . . . . . . . . . . . . . . . . . . . . . Slashing . | . . . . . . . . . . . . . . . . . . . . . . . . . . . . . . . . . . . . Piercing 7 | . . . 7 . . . . . . . . . . . . . . . . . . . . . . . . . . . . . . . . Sneak Attacks . | . . . . . . . . . . . . . . . . . . . . . . . . . . . . . . . . . . . . Combat Hostiles . | . . . . . . . . . . . . . . . . . . . . . . . . . . . . . . . . . . . . Follow-up Attacks . | . . . . . . . . . . . . . . . . . . . . . . . . . . . . . . . . . . . . Damage Inflicted 151614 | 140 290 346 1764 2418 1680 4056 423 495 . 2992 7682 . 6625 1655 2584 . 3146 9904 1152 6272 1116 1623 463 3148 9165 2304 7742 9652 741 19751 3058 8707 2729 10512 17279 Guns 144773 | 140 290 346 1110 1228 1680 4056 423 495 . 2992 7682 . 6474 1524 2584 . 3146 9599 640 6272 1116 1623 463 3148 9110 2304 7723 9652 608 19751 3058 8707 2650 9419 14760 Cannons 3557 | . . . . . . . . . . . . . . . . . . . . . . . . . . . . . . . . . 79 1093 2385 Explosions 1233 | . . . . . . . . . . . . . 151 131 . . . 305 512 . . . . . . . . . . . . . . . 134 Melee 654 | . . . 654 . . . . . . . . . . . . . . . . . . . . . . . . . . . . . . . . Ramming . | . . . . . . . . . . . . . . . . . . . . . . . . . . . . . . . . . . . . Kinetic 148322 | 140 290 346 1110 1228 1680 4056 423 495 . 2992 7682 . 6474 1524 2584 . 3146 9599 640 6272 1116 1623 463 3148 9110 2304 7723 9652 608 19751 3058 8699 2729 10512 17145 Thermal 1397 | . . . . 1190 . . . . . . . . . . . . . . . . . . . . 55 . 19 . 133 . . . . . . Explosive 948 | . . . . . . . . . . . . . . 131 . . . 305 512 . . . . . . . . . . . . . . . . Electromagnetic 293 | . . . . . . . . . . . . . 151 . . . . . . . . . . . . . . . . . . 8 . . 134 Impact . | . . . . . . . . . . . . . . . . . . . . . . . . . . . . . . . . . . . . Slashing . | . . . . . . . . . . . . . . . . . . . . . . . . . . . . . . . . . . . . Piercing 654 | . . . 654 . . . . . . . . . . . . . . . . . . . . . . . . . . . . . . . . Highest Corruption 4 | . . . . . . . . . . . . 4 4 . . . . 1 1 1 . . . . 1 1 1 1 . . 1 . . . . Average Corruption 1 | . . . . . . . . . . . . 4 2 . . . . 1 1 1 . . . . 1 1 1 1 . . 1 . . . . Corruption Purged 9 | . . . . . . . . . . . . . 4 . . . . 1 . 1 . . . . 1 . 1 1 . . . . . . . Effects 14 | . . . . . . . . . . . . . 9 . . . . 2 . 1 . . . . . . 1 1 . . . . . . . Message Errors 6 | . . . . . . . . . . . . . 5 . . . . 1 . . . . . . . . . . . . . . . . . Matter Fused 1 | . . . . . . . . . . . . . 1 . . . . . . . . . . . . . . . . . . . . . . Energy Discharges 4 | . . . . . . . . . . . . . 2 . . . . 1 . . . . . . . . 1 . . . . . . . . Data Loss (minor) 1 | . . . . . . . . . . . . . . . . . . . . 1 . . . . . . . . . . . . . . . Targeting Errors 1 | . . . . . . . . . . . . . 1 . . . . . . . . . . . . . . . . . . . . . . Weapon Failures 1 | . . . . . . . . . . . . . . . . . . . . . . . . . . . . 1 . . . . . . . Overload Shots . | . . . . . . . . . . . . . . . . . . . . . . . . . . . . . . . . . . . . Overflow Damage 197 | . . . 117 3 . . . . . . . . 3 . . . . 19 . . . . . . . . . . . . . . . 2 53 Projectiles 5 | . . . . 3 . . . . . . . . . . . . . . . . . . . . . . . . . . . . . 2 . Explosions 75 | . . . . . . . . . . . . . 3 . . . . 19 . . . . . . . . . . . . . . . . 53 Melee 117 | . . . 117 . . . . . . . . . . . . . . . . . . . . . . . . . . . . . . . . Knockbacks 60 | . . . . . . . . . . . . . . . . . . . . . . . . . . . . . . . . . . 17 43 Impact . | . . . . . . . . . . . . . . . . . . . . . . . . . . . . . . . . . . . . Kinetic 56 | . . . . . . . . . . . . . . . . . . . . . . . . . . . . . . . . . . 15 41 Secondary 4 | . . . . . . . . . . . . . . . . . . . . . . . . . . . . . . . . . . 2 2 Self-Inflicted Damage . | . . . . . . . . . . . . . . . . . . . . . . . . . . . . . . . . . . . . Shots . | . . . . . . . . . . . . . . . . . . . . . . . . . . . . . . . . . . . . Rammed . | . . . . . . . . . . . . . . . . . . . . . . . . . . . . . . . . . . . . Targets Rammed . | . . . . . . . . . . . . . . . . . . . . . . . . . . . . . . . . . . . . Kicked . | . . . . . . . . . . . . . . . . . . . . . . . . . . . . . . . . . . . . Crushed . | . . . . . . . . . . . . . . . . . . . . . . . . . . . . . . . . . . . . Highest Temperature 359 | . 20 . 132 22 130 258 160 86 . 359 145 . 177 63 126 . 154 70 35 37 101 198 58 96 107 24 34 26 30 27 34 100 27 11 . Average Temperature 42 | . 12 . 47 6 37 58 64 43 . 129 30 . 33 25 40 . 53 21 22 12 49 106 30 39 31 10 16 9 27 10 16 33 14 7 . Received Heat Transfer 1871 | . 54 . . 42 18 105 6 12 . 57 138 . 132 30 57 . 45 138 . 48 27 45 . 27 57 . 69 81 . 93 21 36 63 164 306 Siege Activations . | . . . . . . . . . . . . . . . . . . . . . . . . . . . . . . . . . . . . Robots Corrupted . | . . . . . . . . . . . . . . . . . . . . . . . . . . . . . . . . . . . . Combat Hostiles . | . . . . . . . . . . . . . . . . . . . . . . . . . . . . . . . . . . . . Parts Fried 4 | . . . . . . . . . . . . . 1 . . . . . . . . . . 1 . . . . . . . . . 1 1 Impact Corruptions . | . . . . . . . . . . . . . . . . . . . . . . . . . . . . . . . . . . . . Robots Melted . | . . . . . . . . . . . . . . . . . . . . . . . . . . . . . . . . . . . . Combat Hostiles . | . . . . . . . . . . . . . . . . . . . . . . . . . . . . . . . . . . . . Parts Melted 7 | . . . . 3 . . . . . . . . . . . . . . . . . . . . . . . . . . . . . . 4 Heat Transferred 4515 | . . . . 4033 . . . . . . . . . . . . . . . . . . . . 111 . 37 . 334 . . . . . . Parts Sabotaged 3 | . . . . . . . . . . . . . . . . . . . . . . . . . . . . . . . . . . . 3 Parts Stolen . | . . . . . . . . . . . . . . . . . . . . . . . . . . . . . . . . . . . . Parts Stripped . | . . . . . . . . . . . . . . . . . . . . . . . . . . . . . . . . . . . . Power Chain Reactions . | . . . . . . . . . . . . . . . . . . . . . . . . . . . . . . . . . . . . Missiles Intercepted . | . . . . . . . . . . . . . . . . . . . . . . . . . . . . . . . . . . . . Alert | -11 -10 -10 -10 -9 -8 -7 -7 -7 -7 -6 -6 -6 -6 -6 -6 -6 -5 -5 -5 -5 -5 -5 -5 -4 -4 -4 -4 -4 -4 -3 -3 -2 -2 -2 -1 ------- Run | Scr Mat Min Exi Min Mat Fac Low Low Dat Pro Fac Was Fac Low Low Zio Pro Fac Was Fac Upp Upp Zhi Pro Fac Was Fac Arm Lab Res Qua Res Tes Sec Acc Peak Influence 5894 | 15 217 47 . 103 504 585 . . . . 509 81 938 . . . . 1177 314 975 . . . . 763 146 779 1022 . 2277 1100 1477 747 3821 5894 Initial 1747 | . 7 17 . . 5 116 . . . . . 36 43 . . . . . 210 158 . . . . 85 102 78 227 . . 962 424 368 315 1747 Average 532 | 6 85 18 . 25 246 218 . . . . 186 57 380 . . . . 342 269 436 . . . . 386 126 440 719 . 885 848 810 371 1424 3905 Maximum Alert Level 5 | . 1 . . . 2 2 . . . . 2 . 3 . . . . 4 1 3 . . . . 3 . 3 3 . 5 4 4 3 5 5 Low Security (%) 36 | 100 99 100 . 100 28 44 . . . . 57 100 28 . . . . 30 . 17 . . . . 32 100 16 . . 6 . . 21 . . Level 1 23 | . . . . . 63 51 . . . . 34 . 26 . . . . 31 100 35 . . . . 17 . 30 15 . 6 . 4 32 5 . Level 2 20 | . . . . . 7 4 . . . . 7 . 36 . . . . 36 . 33 . . . . 39 . 37 12 . 28 14 37 41 40 . Level 3 12 | . . . . . . . . . . . . . 9 . . . . 1 . 14 . . . . 10 . 15 71 . 32 85 38 3 18 . Level 4 1 | . . . . . . . . . . . . . . . . . . . . . . . . . . . . . . 9 . 19 . . . Level 5 1 | . . . . . . . . . . . . . . . . . . . . . . . . . . . . . . 16 . . . . 1 High Security . | . . . . . . . . . . . . . . . . . . . . . . . . . . . . . . . . . . . . Max Security 4 | . . . . . . . . . . . . . . . . . . . . . . . . . . . . . . . . . . 35 98 Sterilizations 1 | . . . . . . . . . . . . . . . . . . . . . . . . . . . . . . . . . . . 1 Squads Dispatched 207 | . 2 . . . 4 4 . . . 1 15 . 8 . . . . 15 . 8 . . . . 11 . 6 6 . 32 4 17 8 28 38 Investigation 33 | . 2 . . . 4 2 . . . . 7 . 1 . . . . 2 . 3 . . . . 2 . . 2 . 4 . 2 2 . . Extermination 23 | . . . . . . 1 . . . . 4 . 2 . . . . 3 . 2 . . . . 2 . 3 2 . 3 . 1 . . . Reinforcement 19 | . . . . . . . . . . . 1 . 2 . . . . 2 . 1 . . . . 3 . . . . 1 . . 1 7 1 Assault 54 | . . . . . . . . . . 1 . . . . . . . . . . . . . . 1 . . 2 . 4 . 2 1 12 31 Garrison 37 | . . . . . . 1 . . . . 3 . 3 . . . . 8 . 2 . . . . 3 . 3 . . 6 1 1 . 3 3 Intercept 41 | . . . . . . . . . . . . . . . . . . . . . . . . . . . . . . 14 3 11 4 6 3 Construction Impeded 2 | . . . . . . . . . . . . . . . . . . . . . . . . . 1 . . . . 1 . . . . . Haulers Reinforced 7 | . . . . . . . . . . . 1 . 2 . . . . 2 . 1 . . . . . . . . . . . . . . 1 Stealth | -11 -10 -10 -10 -9 -8 -7 -7 -7 -7 -6 -6 -6 -6 -6 -6 -6 -5 -5 -5 -5 -5 -5 -5 -4 -4 -4 -4 -4 -4 -3 -3 -2 -2 -2 -1 --------- Run | Scr Mat Min Exi Min Mat Fac Low Low Dat Pro Fac Was Fac Low Low Zio Pro Fac Was Fac Upp Upp Zhi Pro Fac Was Fac Arm Lab Res Qua Res Tes Sec Acc Distress Signals 32 | . 2 . . . 2 . . . . . 2 . 2 . 1 . . 1 . . . . . . 2 . 4 1 1 5 . . 2 6 1 Communications Jammed . | . . . . . . . . . . . . . . . . . . . . . . . . . . . . . . . . . . . . Distress Signals . | . . . . . . . . . . . . . . . . . . . . . . . . . . . . . . . . . . . . Times Spotted 1221 | . 10 . . 4 30 35 2 3 . 21 56 5 48 12 12 . 16 58 6 41 10 10 . 15 56 6 53 57 1 160 39 47 61 133 214 Peak Tracking Total 28 | . 3 . . 2 5 4 1 1 . 9 4 5 4 4 3 . 7 5 5 4 4 7 . 7 5 3 7 5 1 19 17 11 28 23 21 Tactical Retreats 58 | . 1 . . 1 1 . . . . . 1 . . . . . . 1 . 2 . . . . 5 . 1 . . 18 2 5 8 5 7 Traps | -11 -10 -10 -10 -9 -8 -7 -7 -7 -7 -6 -6 -6 -6 -6 -6 -6 -5 -5 -5 -5 -5 -5 -5 -4 -4 -4 -4 -4 -4 -3 -3 -2 -2 -2 -1 ------- Run | Scr Mat Min Exi Min Mat Fac Low Low Dat Pro Fac Was Fac Low Low Zio Pro Fac Was Fac Upp Upp Zhi Pro Fac Was Fac Arm Lab Res Qua Res Tes Sec Acc Traps Triggered 18 | . . . . . . 1 . . . . 1 . 6 . . . . 1 . . . . . . 3 . . 1 . 2 . . 1 1 1 Indirectly 1 | . . . . . . . . . . . . . 1 . . . . . . . . . . . . . . . . . . . . . . Trap Hack Attempts . | . . . . . . . . . . . . . . . . . . . . . . . . . . . . . . . . . . . . Triggered . | . . . . . . . . . . . . . . . . . . . . . . . . . . . . . . . . . . . . Disarmed 180 | . . . . . . 27 . . . . 23 . 19 . . . . 9 . 5 . . . . 34 . 18 6 . 8 . 18 12 1 . Reprogrammed 98 | . . . . . 2 6 . . . . 12 . 5 . . . . 10 . 6 . . . . 1 . 13 6 . 15 12 6 4 . . Reused 24 | . . . . . . . . . . . . . . . . . . 5 . . . . . . . . 1 2 . 8 8 . . . . Traps Extracted . | . . . . . . . . . . . . . . . . . . . . . . . . . . . . . . . . . . . . Installed 3 | . . . . 3 . . . . . . . . . . . . . . . . . . . . . . . . . . . . . . . Triggered 26 | . . . . . . . . . . 1 . . . . 1 . . 5 . . . . . . . . 1 2 . 8 8 . . . . Machines | -11 -10 -10 -10 -9 -8 -7 -7 -7 -7 -6 -6 -6 -6 -6 -6 -6 -5 -5 -5 -5 -5 -5 -5 -4 -4 -4 -4 -4 -4 -3 -3 -2 -2 -2 -1 ---------- Run | Scr Mat Min Exi Min Mat Fac Low Low Dat Pro Fac Was Fac Low Low Zio Pro Fac Was Fac Upp Upp Zhi Pro Fac Was Fac Arm Lab Res Qua Res Tes Sec Acc Machines Disabled 83 | . . . . 1 3 1 . . . . 1 . 12 . . . 1 7 . 8 2 4 1 1 . . 2 9 1 1 5 . 6 13 4 Max in Single Turn 6 | . . . . 1 1 1 . . . . 1 . 6 . . . 1 1 . 6 1 2 1 1 . . 1 1 1 1 1 . 2 1 1 Garrison Access 4 | . . . . . . . . . . . . . . . . . . . . . . . . . 1 . . . . 1 . 1 1 . . Machines Sabotaged . | . . . . . . . . . . . . . . . . . . . . . . . . . . . . . . . . . . . . Garrisons Compromised . | . . . . . . . . . . . . . . . . . . . . . . . . . . . . . . . . . . . . Overloaded Fab Kills . | . . . . . . . . . . . . . . . . . . . . . . . . . . . . . . . . . . . . Fab Network Shutdowns 8 | . . . . . . 1 . . . . 1 . 1 . . . . 1 . 1 . . . . 1 . . . . 1 . 1 . . . Hacking | -11 -10 -10 -10 -9 -8 -7 -7 -7 -7 -6 -6 -6 -6 -6 -6 -6 -5 -5 -5 -5 -5 -5 -5 -4 -4 -4 -4 -4 -4 -3 -3 -2 -2 -2 -1 --------- Run | Scr Mat Min Exi Min Mat Fac Low Low Dat Pro Fac Was Fac Low Low Zio Pro Fac Was Fac Upp Upp Zhi Pro Fac Was Fac Arm Lab Res Qua Res Tes Sec Acc Machines Accessed 382 | . 8 . 2 1 17 32 1 4 4 . 35 . 37 . 1 1 1 32 . 27 2 2 9 . 28 . 30 19 2 21 19 15 13 19 . Terminals 229 | . 6 . . . 11 20 . 1 . . 21 . 21 . . . 1 20 . 17 1 1 . . 17 . 19 12 . 14 14 8 8 17 . Fabricators 35 | . . . . . . 4 . . . . 4 . 4 . . . . 3 . 1 . . . . 3 . 3 6 . 2 . 3 2 . . Repair Stations 14 | . . . . . 1 1 . . . . 1 . 2 . . . . . . 2 . . . . 1 . 2 . . . 2 . 2 . . Recycling Units 33 | . 2 . . . 2 4 . . . . 5 . 5 . . . . 4 . 2 . . . . 2 . 3 1 . 2 . 1 . . . Scanalyzers 18 | . . . . . 2 1 . . . . 1 . 2 . . . . 2 . 2 . . . . 2 . . . . 1 2 2 . 1 . Garrison Access 27 | . . . . . 1 2 . . . . 3 . 3 . . . . 3 . 3 . . . . 3 . 3 . . 2 1 1 1 1 . Total Hacks 2324 | . 27 . 5 1 98 152 1 7 27 . 242 . 256 . 1 4 6 282 . 214 6 10 45 . 239 . 167 99 19 135 82 87 45 67 . Successful 2051 | . 20 . 5 1 93 144 1 7 27 . 228 . 243 . 1 4 6 239 . 185 6 10 45 . 200 . 153 74 19 104 70 70 40 56 . Failed 273 | . 7 . . . 5 8 . . . . 14 . 13 . . . . 43 . 29 . . . . 39 . 14 25 . 31 12 17 5 11 . Catastrophic 15 | . . . . . . 2 . . . . . . . . . . . 1 . 1 . . . . 2 . . 1 . 5 1 1 . 1 . Database Lockouts . | . . . . . . . . . . . . . . . . . . . . . . . . . . . . . . . . . . . . Manual 1581 | . 19 . 1 . 87 99 . . . . 188 . 202 . . . . 193 . 167 . . . . 189 . 112 69 1 96 37 53 24 44 . Terminals 1778 | . 22 . . . 72 114 . 1 . . 194 . 215 . . . 6 224 . 181 5 9 . . 199 . 134 66 . 105 72 60 34 65 . Fabricators 162 | . . . . . . 18 . . . . 10 . 15 . . . . 19 . 6 . . . . 18 . 14 28 . 13 . 14 7 . . Repair Stations 18 | . . . . . 3 2 . . . . 1 . 2 . . . . . . 2 . . . . 2 . 2 . . . 2 . 2 . . Recycling Units 88 | . 5 . . . 7 8 . . . . 17 . 10 . . . . 14 . 4 . . . . 4 . 5 5 . 5 . 4 . . . Scanalyzers 51 | . . . . . 11 5 . . . . 3 . 5 . . . . 5 . 2 . . . . 5 . . . . 5 4 5 . 1 . Garrison Access 116 | . . . . . 5 5 . . . . 17 . 9 . . . . 20 . 19 . . . . 11 . 12 . . 7 4 4 2 1 . Terminal Hacks 1128 | . 9 . 5 1 40 70 1 7 27 . 138 . 149 . 1 4 6 126 . 104 6 10 45 . 107 . 56 24 19 42 42 36 18 35 . Record 114 | . . . 4 . . . . 5 11 . 1 . 1 . . . 6 5 . . 5 9 36 . 3 . . 1 19 . 7 . . 1 . Part Schematic 311 | . . . . . 9 23 . . 8 . 29 . 76 . . 4 . 67 . 28 . . 2 . 35 . 9 3 . 10 4 1 . 3 . Robot Schematic 56 | . . . . . . 1 . . 5 . 4 . 22 . . . . 1 . 3 . . . . 16 . . . . . . . . 4 . Robot Analysis 92 | . 2 . . . 15 4 . . . . 40 . 2 . . . . 8 . 3 . . 3 . 4 . 1 . . 1 . 7 1 1 . Prototype ID Bank 116 | . . . . . . 11 . . 3 . 18 . 11 . . . . 13 . 37 . . 4 . 3 . 10 1 . 1 2 1 . 1 . Open Door 16 | . . . . 1 . . 1 2 . . 2 . 1 . 1 . . . . . 1 1 . . . . . 1 . . 1 . . 4 . Level Access Points 12 | . . . . . . 1 . . . . 1 . 1 . . . . 1 . 1 . . . . 1 . 1 1 . 1 1 1 1 . . Branch Access Points 18 | . 1 . . . 1 2 . . . . 1 . 3 . . . . 1 . 2 . . . . 1 . 1 1 . 1 1 1 1 . . Emergency Access Points 11 | . 1 . . . . 1 . . . . 1 . . . . . . 2 . 2 . . . . 2 . . . . . . 1 . 1 . Machine Index 11 | . . . . . . 1 . . . . 1 . 1 . . . . 1 . 1 . . . . 1 . 1 . . . 1 1 1 1 . Terminal Index 7 | . 1 . . . 1 1 . . . . 1 . . . . . . . . . . . . . . . . 1 . . 1 1 . . . Fabricator Index 5 | . . . . . 1 1 . . . . 1 . . . . . . . . . . . . . . . . 1 . 1 . . . . . Repair Station Index 5 | . . . . . 1 1 . . . . 1 . . . . . . . . . . . . . . . . 1 . . 1 . . . . Recycling Unit Index 6 | . 1 . . . 2 1 . . . . 1 . . . . . . . . . . . . . . . . 1 . . . . . . . Scanalyzer Index 5 | . . . . . 1 . . . . . 1 . . . . . . . . . . . . . . . . 1 . 1 1 . . . . Garrison Index 4 | . . . . . 1 1 . . . . . . . . . . . . . . . . . . . . . 1 . . 1 . . . . Alert Level 20 | . . . . . . . . . . . . . 2 . . . . . . 1 . . . . 4 . 1 . . 4 3 3 1 1 . Unreport Threat 75 | . . . . . 2 6 . . . . 9 . 3 . . . . 8 . 7 . . . . 7 . 3 5 . 7 5 7 3 3 . Locate Traps 78 | . 1 . . . 2 5 . . . . 8 . 10 . . . . 5 . 5 . . . . 5 . 8 3 . 6 5 6 4 5 . Disarm Traps 41 | . . . . . . 7 . . . . 4 . 4 . . . . 2 . 2 . . . . 8 . 5 1 . 2 . 3 2 1 . Reprogram Traps 26 | . . . . . 2 1 . . . . 4 . 2 . . . . 2 . 1 . . . . 1 . 4 1 . 4 2 1 1 . . Dispatch Records 7 | . . . . . . . . . . . . . 1 . . . . 2 . 1 . . . . . . 2 . . . . . 1 . . Patrol Status 1 | . . . . . . . . . . . . . . . . . . . . . . . . . . . . . . . . . . 1 . Recall Investigation 4 | . . . . . . . . . . . . . 1 . . . . . . . . . . . 2 . . . . . . . . 1 . Recall Extermination 1 | . . . . . . . . . . . . . . . . . . . . . . . . . 1 . . . . . . . . . . Recall Reinforcements 6 | . . . . . . . . . . . . . . . . . . . . . . . . . 2 . . . . . . . . 4 . Recall Assault 4 | . . . . . . . . . . . . . 1 . . . . . . . . . . . 2 . 1 . . . . . . . . Hauler Manifests 2 | . . . . . . . . . . . . . . . . . . 1 . 1 . . . . . . . . . . . . . . . Registered Components 7 | . . . . . . . . . . . 1 . 1 . . . . 1 . 1 . . . . 1 . 1 . . . . . . 1 . Registered Prototypes 5 | . . . . . . . . . . . . . . . . . . 1 . 1 . . . . 2 . 1 . . . . . . . . Zone Layout 59 | . 2 . . . 2 2 . . . . 9 . 6 . . . . 5 . 7 . . . . 6 . 7 . . 3 6 2 1 1 . EX-Prototype ID Bank 1 | . . . 1 . . . . . . . . . . . . . . . . . . . . . . . . . . . . . . . . Protovariant Controls 1 | . . . . . . . . . . . . . . . . . . . . . . . . . . . . . . . . . 1 . . Activate Exoskeleton 1 | . . . . . . . . . . . . . . . . . . . . . . . . . . . . . . . . . . 1 . Fabricator Hacks 89 | . . . . . . 12 . . . . 2 . 11 . . . . 12 . 4 . . . . 12 . 8 10 . 8 . 7 3 . . Network Status 8 | . . . . . . 2 . . . . . . 3 . . . . . . . . . . . . . . 1 . . . 1 1 . . Load Schematic 37 | . . . . . . 5 . . . . 1 . 4 . . . . 5 . 2 . . . . 6 . 4 3 . 3 . 3 1 . . Build 44 | . . . . . . 5 . . . . 1 . 4 . . . . 7 . 2 . . . . 6 . 4 6 . 5 . 3 1 . . Repair Station Hacks 5 | . . . . . 2 1 . . . . . . . . . . . . . . . . . . 2 . . . . . . . . . . Scan Component 1 | . . . . . . . . . . . . . . . . . . . . . . . . . 1 . . . . . . . . . . Repair 1 | . . . . . . . . . . . . . . . . . . . . . . . . . 1 . . . . . . . . . . Refit 3 | . . . . . 2 1 . . . . . . . . . . . . . . . . . . . . . . . . . . . . . Recycling Unit Hacks 50 | . 2 . . . 3 5 . . . . 8 . 6 . . . . 13 . 2 . . . . 2 . 3 1 . 3 . 2 . . . Recycle Component 6 | . . . . . . . . . . . . . . . . . . 6 . . . . . . . . . . . . . . . . . Process 3 | . . . . . . . . . . . . . . . . . . 2 . . . . . . . . . . . 1 . . . . . Report Inventory 35 | . 2 . . . 2 4 . . . . 8 . 5 . . . . 4 . 2 . . . . 2 . 3 1 . 1 . 1 . . . Retrieve Matter 2 | . . . . . . . . . . . . . . . . . . 1 . . . . . . . . . . . 1 . . . . . Retrieve Components 4 | . . . . . 1 1 . . . . . . 1 . . . . . . . . . . . . . . . . . . 1 . . . Scanalyzer 40 | . . . . . 9 4 . . . . 3 . 5 . . . . 4 . . . . . . 3 . . . . 5 3 3 . 1 . Insert Component 20 | . . . . . 4 2 . . . . 2 . 2 . . . . 2 . . . . . . 2 . . . . 3 1 1 . 1 . Analyze 20 | . . . . . 5 2 . . . . 1 . 3 . . . . 2 . . . . . . 1 . . . . 2 2 2 . . . Garrison Access Hacks 2 | . . . . . . . . . . . . . . . . . . . . . . . . . . . . . . 1 . . 1 . . Seal Access 2 | . . . . . . . . . . . . . . . . . . . . . . . . . . . . . . 1 . . 1 . . Unauthorized Hacks 737 | . 9 . . . 39 52 . . . . 77 . 72 . . . . 84 . 75 . . . . 74 . 86 39 . 45 25 22 18 20 . Terminals 509 | . 6 . . . 27 36 . . . . 42 . 53 . . . . 57 . 50 . . . . 53 . 65 26 . 36 18 9 12 19 . Track 148 | . 2 . . . 6 12 . . . . 16 . 17 . . . . 16 . 14 . . . . 15 . 18 6 . 10 5 4 3 4 . Assimilate 81 | . . . . . 6 7 . . . . 6 . 8 . . . . 7 . 9 . . . . 11 . 12 5 . 2 1 . 3 4 . Botnet 177 | . 4 . . . 11 14 . . . . 16 . 18 . . . . 16 . 14 . . . . 15 . 19 10 . 13 9 5 4 9 . Detonate 1 | . . . . . . . . . . . . . . . . . . . . . . . . . . . . . . 1 . . . . . Disrupt 85 | . . . . . 2 2 . . . . 3 . 8 . . . . 15 . 11 . . . . 11 . 15 5 . 8 2 . 2 1 . Operators 17 | . . . . . 2 1 . . . . 1 . 2 . . . . 3 . 2 . . . . 1 . 1 . . 2 1 . . 1 . Fabricators 64 | . . . . . . 6 . . . . 8 . 4 . . . . 7 . 2 . . . . 6 . 6 11 . 4 . 6 4 . . Report 12 | . . . . . . 1 . . . . 3 . 1 . . . . 1 . . . . . . 1 . 1 2 . . . 1 1 . . Prioritize 20 | . . . . . . 2 . . . . 1 . 1 . . . . 2 . 1 . . . . 2 . 2 4 . 2 . 2 1 . . Siphon 20 | . . . . . . 2 . . . . 1 . 1 . . . . 2 . 1 . . . . 2 . 2 4 . 2 . 2 1 . . Haulers 12 | . . . . . . 1 . . . . 3 . 1 . . . . 2 . . . . . . 1 . 1 1 . . . 1 1 . . Repair Stations 13 | . . . . . 1 1 . . . . 1 . 2 . . . . . . 2 . . . . . . 2 . . . 2 . 2 . . Mechanics 13 | . . . . . 1 1 . . . . 1 . 2 . . . . . . 2 . . . . . . 2 . . . 2 . 2 . . Recycling Units 36 | . 3 . . . 4 3 . . . . 9 . 4 . . . . 1 . 2 . . . . 2 . 2 2 . 2 . 2 . . . Monitor 12 | . . . . . 1 1 . . . . 2 . 2 . . . . . . 1 . . . . 1 . 1 1 . 1 . 1 . . . Recyclers 13 | . 1 . . . 1 1 . . . . 2 . 2 . . . . . . 1 . . . . 1 . 1 1 . 1 . 1 . . . Tunnel 11 | . 2 . . . 2 1 . . . . 5 . . . . . . 1 . . . . . . . . . . . . . . . . . Scanalyzers 10 | . . . . . 2 1 . . . . . . . . . . . 1 . 2 . . . . 2 . . . . . 1 1 . . . Researchers 3 | . . . . . . . . . . . . . . . . . . . . . . . . . 1 . . . . . 1 1 . . . Extract 7 | . . . . . 2 1 . . . . . . . . . . . 1 . 2 . . . . 1 . . . . . . . . . . Garrison Access 105 | . . . . . 5 5 . . . . 17 . 9 . . . . 18 . 17 . . . . 11 . 11 . . 3 4 4 . 1 . Broadcast 16 | . . . . . 1 1 . . . . 1 . 1 . . . . 2 . 3 . . . . 2 . 2 . . 1 1 1 . . . Redirect 1 | . . . . . 1 . . . . . . . . . . . . . . . . . . . . . . . . . . . . . . Reprogram 52 | . . . . . 1 2 . . . . 12 . 5 . . . . 11 . 8 . . . . 4 . 5 . . 1 1 1 . 1 . Intercept 20 | . . . . . 1 1 . . . . 3 . 2 . . . . 3 . 3 . . . . 3 . 2 . . . 1 1 . . . Watchers 16 | . . . . . 1 1 . . . . 1 . 1 . . . . 2 . 3 . . . . 2 . 2 . . 1 1 1 . . . Data Cores Recovered 10 | . . . . . . . . . . . 1 . 1 . . . . . . . . . . . 1 . . . . 3 3 . 1 . . Used 5 | . . . . . . . . . . . 1 . . . . . . . . . . . . . 1 . . . . 1 2 . . . . Hacking Detections 243 | . 7 . . . 12 26 . . . . 25 . 17 . . . . 22 . 15 . 1 . . 19 . 22 14 . 17 12 11 10 13 . Full Trace Events 14 | . 1 . . . . . . . . . 2 . . . . . . . . 1 . . . . 1 . . 2 . 3 . 2 2 . . Feedback Events 3 | . . . . . . . . . . . . . . . . . . . . . . . . . 1 . . 1 . . . 1 . . . Corruption 2 | . . . . . . . . . . . . . . . . . . . . . . . . . 1 . . 1 . . . . . . . Hackware Fried 1 | . . . . . . . . . . . . . . . . . . . . . . . . . . . . . . . . 1 . . . Feedback Blocked . | . . . . . . . . . . . . . . . . . . . . . . . . . . . . . . . . . . . . Robot Schematics Acquired 56 | . . . . . . 1 . . 5 . 4 . 22 . . . . 1 . 3 . . . . 16 . . . . . . . . 4 . Robots Built 10 | . . . . . . . . . . . . . . . . . . . . . . . . . . . . 10 . . . . . . . Matter 1603 | . . . . . . . . . . . . . . . . . . . . . . . . . . . . 1603 . . . . . . . Time 281 | . . . . . . . . . . . . . . . . . . . . . . . . . . . . 281 . . . . . . . Total Robot Build Rating 72 | . . . . . . . . . . . . . . . . . . . . . . . . . . . . 72 . . . . . . . Part Schematics Acquired 348 | . . . . . 18 26 . . 8 . 30 . 75 . . 4 . 70 . 46 . . 2 . 35 . 9 3 . 12 5 2 . 3 . Parts Built 40 | . . . . . . 7 . . . . 1 . 4 . . . . 6 . 2 . . . . 7 . 5 . . 4 . 3 1 . . Matter 8458 | . . . . . . 924 . . . . 238 . 877 . . . . 1390 . 526 . . . . 1226 . 830 . . 1199 . 936 312 . . Time 1125 | . . . . . . 161 . . . . 28 . 103 . . . . 162 . 62 . . . . 208 . 93 . . 142 . 111 55 . . Total Part Build Rating 270 | . . . . . . 35 . . . . 6 . 21 . . . . 38 . 14 . . . . 49 . 37 . . 34 . 27 9 . . Parts Repaired 1 | . . . . . . . . . . . . . . . . . . . . . . . . . 1 . . . . . . . . . . Time 78 | . . . . . . . . . . . . . . . . . . . . . . . . . 78 . . . . . . . . . . Parts Recycled 6 | . . . . . . . . . . . . . . . . . . 6 . . . . . . . . . . . . . . . . . Recycled Matter 698 | . . . . . . . . . . . . . . . . . . 500 . . . . . . . . . . . 198 . . . . . Retrieved Matter 1152 | . . . . . . . . . . . . . . . . . . 818 . . . . . . . . . . . 334 . . . . . Retrieved Components 8 | . . . . . 2 3 . . . . . . 2 . . . . . . . . . . . . . . . . . . 1 . . . Parts Scanalyzed 15 | . . . . . 4 1 . . . . 1 . 2 . . . . 2 . . . . . . 1 . . . . 2 1 1 . . . Part Schematics Acquired 15 | . . . . . 4 1 . . . . 1 . 2 . . . . 2 . . . . . . 1 . . . . 2 1 1 . . . Parts Damaged 1 | . . . . . . . . . . . . . . . . . . . . . . . . . 1 . . . . . . . . . . Bothacking | -11 -10 -10 -10 -9 -8 -7 -7 -7 -7 -6 -6 -6 -6 -6 -6 -6 -5 -5 -5 -5 -5 -5 -5 -4 -4 -4 -4 -4 -4 -3 -3 -2 -2 -2 -1 ------------ Run | Scr Mat Min Exi Min Mat Fac Low Low Dat Pro Fac Was Fac Low Low Zio Pro Fac Was Fac Upp Upp Zhi Pro Fac Was Fac Arm Lab Res Qua Res Tes Sec Acc Used RIF Installer . | . . . . . . . . . . . . . . . . . . . . . . . . . . . . . . . . . . . . Robots Hacked 2 | . . . . . . 1 . . . . . . . . . . . . . . . . . . 1 . . . . . . . . . . Non-combat 2 | . . . . . . 1 . . . . . . . . . . . . . . . . . . 1 . . . . . . . . . . Combat . | . . . . . . . . . . . . . . . . . . . . . . . . . . . . . . . . . . . . Robot Hacks Applied 2 | . . . . . . 1 . . . . . . . . . . . . . . . . . . 1 . . . . . . . . . . parse_system 1 | . . . . . . 1 . . . . . . . . . . . . . . . . . . . . . . . . . . . . . find_chute 1 | . . . . . . . . . . . . . . . . . . . . . . . . . 1 . . . . . . . . . . Relay Couplers Released 3 | . . . . . . . . . . . . . . . . . . 1 . . . . . 2 . . . . . . . . . . . Programmers 3 | . . . . . . . . . . . . . . . . . . 1 . . . . . 2 . . . . . . . . . . . Robots Rewired 20 | . . . 2 . . . . . . . . . . . . . . . . . . . . 2 1 . . 15 . . . . . . . Allies Hacked 7 | . . . . . . . . . . 1 1 . . . . . . 2 . 1 . . . . . . 1 . . . . . . 1 . Hacks Repelled . | . . . . . . . . . . . . . . . . . . . . . . . . . . . . . . . . . . . . Allies | -11 -10 -10 -10 -9 -8 -7 -7 -7 -7 -6 -6 -6 -6 -6 -6 -6 -5 -5 -5 -5 -5 -5 -5 -4 -4 -4 -4 -4 -4 -3 -3 -2 -2 -2 -1 -------- Run | Scr Mat Min Exi Min Mat Fac Low Low Dat Pro Fac Was Fac Low Low Zio Pro Fac Was Fac Upp Upp Zhi Pro Fac Was Fac Arm Lab Res Qua Res Tes Sec Acc Total Allies 153 | . . . 2 3 3 9 . . . 2 22 . 7 . . 2 . 18 . 18 . . . 2 6 . 13 27 . 3 3 3 3 4 3 Largest Group 29 | . . . 2 5 3 11 8 8 8 10 29 . 4 2 2 4 2 15 1 17 14 14 14 16 5 . 6 29 5 3 2 3 2 2 1 Highest-Rated Group 1419 | . . . 29 69 46 281 188 188 188 326 775 . 100 52 52 102 52 482 12 584 447 447 447 543 158 . 180 1419 231 90 94 86 88 1101 1075 Highest-Rated Ally 1075 | . . . 21 21 26 38 38 38 38 94 54 . 38 26 26 30 26 54 12 90 90 90 90 90 49 . 64 90 60 30 47 30 44 1075 1075 Total Orders 123 | . . . . 10 2 12 . . . 2 37 . 2 . . . . 12 . 3 . . . . 12 . 11 19 1 . . . . . . STAY 74 | . . . . 7 1 6 . . . 1 23 . 1 . . . . 8 . 2 . . . . 6 . 6 12 1 . . . . . . FOLLOW 48 | . . . . 2 1 6 . . . 1 14 . 1 . . . . 4 . 1 . . . . 6 . 5 7 . . . . . . . RETURN 1 | . . . . 1 . . . . . . . . . . . . . . . . . . . . . . . . . . . . . . . Ally Attacks 335 | . . . . 1 . 1 . . . 21 25 . 7 . . . . 28 11 5 8 1 . 13 5 . 13 13 1 11 7 3 . 71 90 Total Damage 13845 | . . . . 33 . 32 . . . 591 565 . 86 . . . . 863 132 174 306 59 . 436 153 . 457 235 51 179 110 69 . 4099 5215 Kills 60 | . . . . 1 . 1 . . . 8 3 . 1 . . . . 2 . 2 2 . . 2 . . . 1 . 1 . . . 19 17 Allies Corrupted 7 | . . . . . . . . . . . . . . . . . . . . . . . . . . . . 1 5 . . . 1 . . Allies Melted . | . . . . . . . . . . . . . . . . . . . . . . . . . . . . . . . . . . . . Intel | -11 -10 -10 -10 -9 -8 -7 -7 -7 -7 -6 -6 -6 -6 -6 -6 -6 -5 -5 -5 -5 -5 -5 -5 -4 -4 -4 -4 -4 -4 -3 -3 -2 -2 -2 -1 ------- Run | Scr Mat Min Exi Min Mat Fac Low Low Dat Pro Fac Was Fac Low Low Zio Pro Fac Was Fac Upp Upp Zhi Pro Fac Was Fac Arm Lab Res Qua Res Tes Sec Acc Robot Analysis Total 91 | . 2 . . . 15 4 . . . . 39 . 2 . . . . 8 . 3 . . 3 . 4 . 1 . . 1 . 7 1 1 . Derelict Logs Recovered 15 | . . . . . . . 2 1 . 2 . . . 1 1 1 1 . . . 1 3 . 2 . . . . . . . . . . . Drone Launches 17 | . . . . 17 . . . . . . . . . . . . . . . . . . . . . . . . . . . . . . . Drone Recoveries 1 | . . . . 1 . . . . . . . . . . . . . . . . . . . . . . . . . . . . . . . Exploration | -11 -10 -10 -10 -9 -8 -7 -7 -7 -7 -6 -6 -6 -6 -6 -6 -6 -5 -5 -5 -5 -5 -5 -5 -4 -4 -4 -4 -4 -4 -3 -3 -2 -2 -2 -1 ------------- Run | Scr Mat Min Exi Min Mat Fac Low Low Dat Pro Fac Was Fac Low Low Zio Pro Fac Was Fac Upp Upp Zhi Pro Fac Was Fac Arm Lab Res Qua Res Tes Sec Acc Turns Passed 29943 | 60 422 473 636 1561 756 1420 1341 1724 266 1674 2601 29 1198 1091 1156 895 841 1607 37 1132 482 667 87 530 1223 46 1065 1104 147 1308 217 524 252 699 672 Spaces Moved 63041 | 34 533 984 897 1249 1599 3598 1339 1007 122 998 8541 119 3876 865 897 1085 627 5765 174 3837 580 897 190 763 3795 104 3755 3109 242 3960 1094 2352 1315 1788 951 Core 1769 | 34 527 . 330 853 2 . . . . . . . . . . . . . . . . . . . . . . . . . . 21 . . 2 Treads . | . . . . . . . . . . . . . . . . . . . . . . . . . . . . . . . . . . . . Legs . | . . . . . . . . . . . . . . . . . . . . . . . . . . . . . . . . . . . . Wheels . | . . . . . . . . . . . . . . . . . . . . . . . . . . . . . . . . . . . . Hover . | . . . . . . . . . . . . . . . . . . . . . . . . . . . . . . . . . . . . Flight 61272 | . 6 984 567 396 1597 3598 1339 1007 122 998 8541 119 3876 865 897 1085 627 5765 174 3837 580 897 190 763 3795 104 3755 3109 242 3960 1094 2331 1315 1788 949 Fastest Speed 10 | 50 40 40 40 40 34 27 27 27 27 27 17 22 13 22 19 19 19 15 13 13 13 13 13 13 13 13 13 13 13 10 10 10 10 10 10 Average Speed 21 | 50 49 40 61 83 35 31 27 27 27 27 25 22 22 22 21 20 19 18 13 15 13 13 13 13 13 13 13 13 13 12 10 12 10 12 10 Slowest Speed 200 | 50 50 40 100 150 100 112 27 27 27 27 27 22 23 22 22 21 21 19 13 16 13 13 13 13 13 13 13 13 13 109 11 150 11 200 150 Overloaded Moves 74 | . . . . . . . . . . . 29 . 45 . . . . . . . . . . . . . . . . . . . . . . Propulsion Burnouts . | . . . . . . . . . . . . . . . . . . . . . . . . . . . . . . . . . . . . Robots Hopped 555 | . . 11 1 4 15 16 . 3 . . 53 . 39 1 . . . 49 . 50 . 1 . . 49 . 33 9 . 98 15 22 41 31 14 Cave-ins Triggered . | . . . . . . . . . . . . . . . . . . . . . . . . . . . . . . . . . . . . Teleports 1 | . . . . . . . . . . . . . . . . . . . . . . . . . . . . . . . 1 . . . . Exploration Rate (%) 84 | 3 81 99 93 96 98 88 99 97 76 94 91 95 88 93 93 90 87 86 86 82 85 91 62 86 71 90 74 94 99 86 99 53 98 96 34 Regions Visited 35 Branch Regions 20 Pre-discovered Areas 22 | . 2 1 1 . 2 1 . . 1 . 5 . . . . 1 . 1 . . . 3 3 1 . . . . . . . . . . . Known Exits Taken 29 | 1 1 1 1 1 1 1 1 1 1 1 . . 1 1 1 1 1 . . 1 1 1 1 1 . . 1 1 1 1 1 1 1 1 . Unknown Exits Taken . | . . . . . . . . . . . . . . . . . . . . . . . . . . . . . . . . . . . . Scrap Searched 34 | . . . . 1 . . 5 4 . 1 . . . 2 6 4 3 . . . 2 5 . 1 . . . . . . . . . . . Spaces Dug 119 | . 3 . . . 7 3 7 . . 1 8 . 4 . . . . 4 . 11 . . . 3 11 . 18 11 . 13 1 10 4 . . Terrain Destroyed 828 | . 3 . 10 19 40 12 11 . . 11 55 . 20 21 11 . 20 74 50 118 21 11 . 17 68 9 58 33 . 43 22 42 12 17 . Melee . | . . . . . . . . . . . . . . . . . . . . . . . . . . . . . . . . . . . . Projectile 716 | . 3 . 10 19 40 12 11 . . 11 55 . 20 16 11 . 20 68 . 67 21 11 . 17 68 9 58 33 . 43 22 42 12 17 . AOE 112 | . . . . . . . . . . . . . . 5 . . . 6 50 51 . . . . . . . . . . . . . . . Terrain Rammed . | . . . . . . . . . . . . . . . . . . . . . . . . . . . . . . . . . . . . Walls Destroyed . | . . . . . . . . . . . . . . . . . . . . . . . . . . . . . . . . . . . . Machines Disabled . | . . . . . . . . . . . . . . . . . . . . . . . . . . . . . . . . . . . . Actions | -11 -10 -10 -10 -9 -8 -7 -7 -7 -7 -6 -6 -6 -6 -6 -6 -6 -5 -5 -5 -5 -5 -5 -5 -4 -4 -4 -4 -4 -4 -3 -3 -2 -2 -2 -1 --------- Run | Scr Mat Min Exi Min Mat Fac Low Low Dat Pro Fac Was Fac Low Low Zio Pro Fac Was Fac Upp Upp Zhi Pro Fac Was Fac Arm Lab Res Qua Res Tes Sec Acc Total 78081 | 61 650 1022 972 1503 1770 3888 2317 2455 354 2400 8949 120 4168 1762 1855 1756 1347 6250 182 4318 985 1443 251 1191 4463 134 4291 3786 327 4675 1179 2560 1385 2120 1192 Wait 12229 | 11 83 3 16 69 112 160 961 1441 233 1346 320 . 185 869 930 655 674 309 . 413 384 514 44 375 563 8 438 499 1 448 6 45 14 93 7 Move 61961 | 33 532 961 894 1242 1569 3567 1338 1000 121 997 8442 118 3804 862 896 1084 626 5672 173 3747 579 894 189 762 3700 103 3689 3092 241 3775 1064 2309 1237 1727 922 Hop 490 | . . 11 1 2 14 14 . 3 . . 46 . 32 1 . . . 44 . 39 . 1 . . 46 . 32 7 . 84 14 20 36 29 14 Pick Up 109 | 1 . 2 2 4 1 11 . 2 . 1 5 . 5 . . 5 . 17 . 3 . 1 2 1 3 . 2 1 2 9 5 3 5 12 4 Fast Attach 161 | 3 2 3 2 7 5 10 2 . . . 2 . 1 . . 4 . 4 . 6 . . 4 2 5 . 2 3 20 11 14 14 15 17 3 Attach 55 | . . . 3 5 3 7 . 1 . 1 3 . 7 . . . . 5 . . 1 . 1 . 1 . . . 1 1 1 3 2 4 5 Detach 27 | . . . 2 5 1 2 . . . . . . 4 . . . . 5 . . . . . . . . . . 2 1 . 1 1 2 1 Swap 185 | . 4 1 . 1 9 7 . . . 3 2 2 7 . . . 2 22 . 8 . 4 . 3 9 2 14 12 11 34 9 5 1 8 5 Drop 234 | . . 5 5 8 7 23 2 1 . 1 3 . 6 . . 8 . 18 . 9 1 . 5 3 6 . 6 2 20 23 14 18 20 15 5 Fire 2068 | 13 29 30 18 151 34 69 12 7 . 40 106 . 86 23 29 . 38 117 9 75 18 20 6 34 97 21 101 149 22 235 38 106 45 132 158 Melee 7 | . . . 7 . . . . . . . . . . . . . . . . . . . . . . . . . . . . . . . . Ram . | . . . . . . . . . . . . . . . . . . . . . . . . . . . . . . . . . . . . Kick . | . . . . . . . . . . . . . . . . . . . . . . . . . . . . . . . . . . . . Crush . | . . . . . . . . . . . . . . . . . . . . . . . . . . . . . . . . . . . . Escape Stasis 83 | . . . . . . . . . . . . . 10 . . . . . . . . . . . 8 . . . . 2 . . . 39 24 Rewire 24 | . . . 21 . . . . . . . 1 . . . . . . 2 . . . . . . . . . . . . . . . . . Trap 3 | . . . . 3 . . . . . . . . . . . . . . . . . . . . . . . . . . . . . . . Miscellaneous 445 | . . 6 1 6 15 18 2 . . 11 19 . 21 7 . . 7 35 . 18 2 9 . 11 25 . 7 21 7 52 14 36 9 42 44 Route ------- -11/Scrapyard -10/Materials (discovered 3 exits: *Mat x2 / *Min) -10/Mines (discovered 3 exits: *Mat x2 / *Exi) -10/Exiles (discovered 2 exits: *Min x2) -9/Mines (discovered 2 exits: *Mat x2) -8/Materials (discovered 3 exits: *Fac x3) -7/Factory (discovered 6 exits: *Fac x4 / *Low x2) -7/Lower Caves (discovered 2 exits: *Low / *Zio) -7/Lower Caves (discovered 2 exits: Fac / *Dat) -7/Data Miner -6/Proximity Caves -6/Factory (discovered 8 exits: *Fac x4 / *Low x2 / *Ext x2) -6/Waste -6/Factory (discovered 8 exits: *Fac x4 / *Low x2 / *Ext x2) -6/Lower Caves -6/Lower Caves (discovered 2 exits: *Fac / *Zio) -6/Zion (discovered 2 exits: Dee / *Pro) -5/Proximity Caves -5/Factory (discovered 6 exits: *Fac x4 / *Upp x2) -5/Waste -5/Factory (discovered 6 exits: *Fac x4 / *Upp x2) -5/Upper Caves -5/Upper Caves (discovered 2 exits: *Fac / *Zhi) -5/Zhirov -4/Proximity Caves -4/Factory (discovered 7 exits: *Res x4 / *Upp x2 / Arm) -4/Waste -4/Factory (discovered 7 exits: *Res x4 / *Upp x2 / *Arm) -4/Armory (discovered 3 exits: *Res x2 / *Lab) -4/Lab -3/Research (discovered 5 exits: *Res x3 / *Qua x2) -3/Quarantine -2/Research (discovered 5 exits: *Acc x3 / *Tes x2) -2/Testing (discovered 2 exits: *Acc / *Sec) -2/Section 7 -1/Access (discovered 2 exits: *Sur / *Com) To Epsilon Eridani History --------- Turn | Location | Event 1 | -11/Scrapyard | Upgraded with Utility slot (x1) 6 | -11/Scrapyard | Identified exit to Materials 6 | -11/Scrapyard | Discovered exit to Materials (range 16) 61 | -11/Scrapyard | Entered Materials 93 | -10/Materials | Identified exit to Mines 93 | -10/Materials | Discovered exit to Mines (range 15) 110 | -10/Materials | Identified exit to Materials 110 | -10/Materials | Discovered exit to Materials (range 16) 162 | -10/Materials | Discovered exit to Materials (range 3) 421 | -10/Materials | Build established: Hacker-Scout 483 | -10/Materials | Entered Mines 495 | -10/Mines | Met a Derelict bent on vengeance 530 | -10/Mines | Found a damaged Exp. Sensor Array with a note attached 543 | -10/Mines | Discovered exit to Materials (range 10) 634 | -10/Mines | Learned location of Storage (-9) 635 | -10/Mines | Discovered exit to Materials (range 6) 745 | -10/Mines | Deemed a non-threat by the Exiles lab entrance 745 | -10/Mines | Identified exit to Exiles 745 | -10/Mines | Discovered exit to Exiles (range 5) 755 | -10/Mines | Found Prototype Device 755 | -10/Mines | Identified Exp. Sensor Array 956 | -10/Mines | Entered Exiles 956 | -10/Exiles | Found Exiles lab destroyed 958 | -10/Exiles | Reached level 2 998 | -10/Exiles | Opened EX-Vault 1001 | -10/Exiles | Upgraded with Propulsion slot (x1) 1001 | -10/Exiles | Upgraded with Utility slot (x2) 1001 | -10/Exiles | Upgraded with Weapon slot (x3) 1001 | -10/Exiles | Found Prototype Ballistic Gun 1001 | -10/Exiles | Identified XL Autogun Array 1309 | -10/Exiles | Build established: Hacker-Skirmisher 1401 | -10/Exiles | Identified exit to Mines 1401 | -10/Exiles | Discovered exit to Mines (range 15) 1449 | -10/Exiles | Learned location of Zion (-6) 1487 | -10/Exiles | Discovered exit to Mines (range 14) 1592 | -10/Exiles | Entered Mines 1592 | -9/Mines | Accompanied by 2 allies 1623 | -9/Mines | Identified exit to Materials 1623 | -9/Mines | Discovered exit to Materials (range 10) 1711 | -9/Mines | Found the Drone Emporium 1715 | -9/Mines | Found Prototype Device 1715 | -9/Mines | Identified Decoy Drone Bay 1770 | -9/Mines | Assembled infested the area 1775 | -9/Mines | Assisted by a Guerilla fighting off Assembled 1829 | -9/Mines | YI-UF0 nonchalantly dropped a Grenade Launcher on the ground 2021 | -9/Mines | Assisted by bots powering up and referring to "LRC-V3" 2150 | -9/Mines | Destroyed YI-UF0 2154 | -9/Mines | Found Prototype Storage 2155 | -9/Mines | Identified YI-UF0's Bottomless Matter Pit 2157 | -9/Mines | Found Prototype Launcher 2157 | -9/Mines | Identified YI-UF0's Doublenader 2221 | -9/Mines | Build established: Hacker-Scout 2275 | -9/Mines | Reached level 3 2525 | -9/Mines | Build established: Hacker-Mutant 2708 | -9/Mines | Discovered exit to Materials (range 17) 2845 | -9/Mines | Build established: Hacker-Skirmisher 2899 | -9/Mines | Found a hidden stash of uninstalled traps 3153 | -9/Mines | Entered Materials 3155 | -8/Materials | Reached level 4 3155 | -8/Materials | Reached level 5 3155 | -8/Materials | Reached level 6 3221 | -8/Materials | Identified exit to Factory 3221 | -8/Materials | Discovered exit to Factory (range 20) 3450 | -8/Materials | Build established: Hacker-Scout 3450 | -8/Materials | Reached level 7 3451 | -8/Materials | Upgraded with Power slot (x1) 3451 | -8/Materials | Upgraded with Propulsion slot (x1) 3544 | -8/Materials | Discovered exit to Factory (range 20) 3659 | -8/Materials | Discovered exit to Factory (range 5) 3669 | -8/Materials | Destroyed 7 combat bots 3699 | -8/Materials | Reached level 8 3840 | -8/Materials | Upgraded with Utility slot (x1) 3909 | -8/Materials | Entered Factory 3909 | -7/Factory | Accompanied by 3 allies 3911 | -7/Factory | Reached level 9 3911 | -7/Factory | Reached level 10 3911 | -7/Factory | Upgraded with Utility slot (x1) 3926 | -7/Factory | Identified exit to Lower Caves 3926 | -7/Factory | Discovered exit to Lower Caves (range 5) 4008 | -7/Factory | Identified exit to Factory 4008 | -7/Factory | Discovered exit to Factory (range 3) 4401 | -7/Factory | Reached level 11 4411 | -7/Factory | Upgraded with Weapon slot (x1) 4592 | -7/Factory | Reached level 12 4599 | -7/Factory | Discovered exit to Factory (range 15) 4620 | -7/Factory | Build established: Wizard-Scout 4684 | -7/Factory | Discovered exit to Factory (range 10) 4757 | -7/Factory | Garrison activated, responded to threat 4849 | -7/Factory | Allied Derelicts emerged from ambush trap array 4971 | -7/Factory | Fabricated Mic. Fission Core (x2) 4975 | -7/Factory | Fabricated Cld. Cesium-ion Thruster? 4992 | -7/Factory | Fabricated Dynamic Insulation System (x2) 5021 | -7/Factory | Fabricated Cld. Cesium-ion Thruster (x1) 5076 | -7/Factory | Fabricated Cld. Cesium-ion Thruster? 5137 | -7/Factory | Discovered exit to Factory (range 12) 5193 | -7/Factory | Local fabrication network quarantined 5231 | -7/Factory | Reached level 13 5234 | -7/Factory | Upgraded with Propulsion slot (x1) 5329 | -7/Factory | Entered Lower Caves 5329 | -7/Lower Caves | Accompanied by 8 allies 5338 | -7/Lower Caves | Encountered a Warlord checkpoint 5389 | -7/Lower Caves | Attracted the attention of an 0b10 checkpoint 5394 | -7/Lower Caves | Learned Factory garrison access intel 5426 | -7/Lower Caves | A Derelict revealed a hidden shortcut to a safe place 5594 | -7/Lower Caves | Learned 4 Factory zone layouts 5608 | -7/Lower Caves | Identified exit to Lower Caves 5608 | -7/Lower Caves | Discovered exit to Lower Caves (range 17) 6670 | -7/Lower Caves | Entered another Lower Caves area 6670 | -7/Lower Caves | Accompanied by 8 allies 6672 | -7/Lower Caves | Reached level 14 6743 | -7/Lower Caves | Upgraded with Utility slot (x1) 7024 | -7/Lower Caves | Identified exit to Data Miner 7330 | -7/Lower Caves | Learned 8 Research zone layouts 7330 | -7/Lower Caves | Learned Extension trap positions 7330 | -7/Lower Caves | Learned Armory stockpile data 7458 | -7/Lower Caves | Attracted the attention of an 0b10 checkpoint 7992 | -7/Lower Caves | Discovered exit to Factory (range 22) 8394 | -7/Lower Caves | Entered Data Miner 8394 | -7/Data Miner | Accompanied by 8 allies 8394 | -7/Data Miner | Identified exit to Proximity Caves 8394 | -7/Data Miner | Discovered exit to Proximity Caves (range 6) 8399 | -7/Data Miner | Met Data Miner 8407 | -7/Data Miner | Learned location of Section 7 (-2) 8407 | -7/Data Miner | Acquired the access code to Warlord's prototype stash 8532 | -7/Data Miner | Received God Mode back door access code from Data Miner 8660 | -7/Data Miner | Entered Proximity Caves 8660 | -6/Proximity Caves | Accompanied by 8 allies 8662 | -6/Proximity Caves | Reached level 15 8824 | -6/Proximity Caves | Escorted by Enhanced Grunt 8826 | -6/Proximity Caves | Attracted the attention of an 0b10 outpost 8842 | -6/Proximity Caves | Reached level 16 8967 | -6/Proximity Caves | P-60 Hacker assimilated hostile G-67 Veteran 9251 | -6/Proximity Caves | Learned location of 1 exit from Factory 9354 | -6/Proximity Caves | Spotted B-75 Beast 9359 | -6/Proximity Caves | Allies destroyed B-75 Beast 9532 | -6/Proximity Caves | Learned location of 1 exit from Factory 9577 | -6/Proximity Caves | Reached level 17 9585 | -6/Proximity Caves | Discovered exit to Factory (range 23) 10102 | -6/Proximity Caves | Found Alien Artifact 10334 | -6/Proximity Caves | Entered Factory 10334 | -6/Factory | Accompanied by 7 allies 10335 | -6/Factory | Identified exit to Extension 10336 | -6/Factory | Identified exit to Factory 10337 | -6/Factory | Loaded intel: 3 garrison access locations 10526 | -6/Factory | Identified exit to Lower Caves 10644 | -6/Factory | Reached level 18 10876 | -6/Factory | Identified Core Expander 10876 | -6/Factory | Installed Core Expander, added new Propulsion slot 11506 | -6/Factory | Reached level 19 11507 | -6/Factory | Upgraded with Utility slot (x1) 11515 | -6/Factory | Garrison activated, responded to threat 11516 | -6/Factory | P-70 Sage assimilated hostile G-50 Soldier 11909 | -6/Factory | Destroyed 7 combat bots 12142 | -6/Factory | Local fabrication network quarantined 12145 | -6/Factory | Fabricated Exp. Cesium-ion Thruster (x1) 12325 | -6/Factory | Reached level 20 12935 | -6/Factory | Sucked down chute 12935 | -6/Factory | Entered Waste 12937 | -6/Waste | Spotted C-40 Crusher 12939 | -6/Waste | Spotted C-40 Crusher 12944 | -6/Waste | Spotted C-40 Crusher 12946 | -6/Waste | Spotted C-40 Crusher 12950 | -6/Waste | EMP discharged 12961 | -6/Waste | Spotted C-40 Crusher 12961 | -6/Waste | Spotted C-40 Crusher 12961 | -6/Waste | Identified exit to Factory 12961 | -6/Waste | Discovered exit to Factory (range 12) 12964 | -6/Waste | Entered Factory 13050 | -6/Factory | Discovered exit to Factory (range 23) 13208 | -6/Factory | Garrison activated, responded to threat 13338 | -6/Factory | Discovered exit to Factory (range 20) 13380 | -6/Factory | Spotted B-75 Beast 13500 | -6/Factory | Discovered exit to Factory (range 20) 13593 | -6/Factory | Reached level 21 13594 | -6/Factory | Upgraded with Utility slot (x1) 13697 | -6/Factory | Discovered exit to Factory (range 6) 13740 | -6/Factory | Destroyed 8 combat bots 13800 | -6/Factory | Destroyed B-75 Beast 13870 | -6/Factory | Fabricated Exp. Sensor Array (x1) 13895 | -6/Factory | Fabricated Exp. Signal Interpreter (x1) 14017 | -6/Factory | Fabricated Exp. Terrain Scanner (x1) 14045 | -6/Factory | Fabricated Exp. Cesium-ion Thruster (x1) 14047 | -6/Factory | Local fabrication network quarantined 14162 | -6/Factory | Entered Lower Caves 14162 | -6/Lower Caves | Accompanied by 2 allies 14925 | -6/Lower Caves | Ambushed by wild Derelicts 14967 | -6/Lower Caves | Identified exit to Lower Caves 14967 | -6/Lower Caves | Discovered exit to Lower Caves (range 21) 14993 | -6/Lower Caves | Learned location of 1 exit from Proximity Caves 15253 | -6/Lower Caves | Entered another Lower Caves area 15253 | -6/Lower Caves | Accompanied by 2 allies 15272 | -6/Lower Caves | Learned Factory emergency access door positions 15391 | -6/Lower Caves | Discovered exit to Factory (range 24) 15917 | -6/Lower Caves | Attracted the attention of an 0b10 checkpoint 15935 | -6/Lower Caves | Identified exit to Zion 15935 | -6/Lower Caves | Discovered exit to Zion (range 25) 16152 | -6/Lower Caves | Spotted B-75 Beast 16196 | -6/Lower Caves | Destroyed B-75 Beast 16409 | -6/Lower Caves | Entered Zion 16409 | -6/Zion | Accompanied by 2 allies 16515 | -6/Zion | Learned Factory trap positions 16517 | -6/Zion | Found Prototype Device 16517 | -6/Zion | Identified Phasing AFG 16555 | -6/Zion | Identified exit to Proximity Caves 16555 | -6/Zion | Discovered exit to Proximity Caves (range 15) 16558 | -6/Zion | Given the Hacking Drone Bay 16559 | -6/Zion | Found Prototype Device 16559 | -6/Zion | Identified Hacking Drone Bay 16689 | -6/Zion | Given A8's code to call for help 16731 | -6/Zion | Learned location of Warlord (-4) 16828 | -6/Zion | Received a hallucinogenic algorithm 16859 | -6/Zion | Gained Derelict followers 16895 | -6/Zion | Identified exit to Deep Caves 16895 | -6/Zion | Discovered exit to Deep Caves (range 12) 17304 | -6/Zion | Entered Proximity Caves 17304 | -5/Proximity Caves | Accompanied by 2 allies 17306 | -5/Proximity Caves | Reached level 22 17450 | -5/Proximity Caves | Learned location of 2 exits from Upper Caves 17450 | -5/Proximity Caves | Learned Research stockpile data 17450 | -5/Proximity Caves | Learned Research terminal intel 17451 | -5/Proximity Caves | Attracted the attention of an 0b10 base 17644 | -5/Proximity Caves | Learned Factory terminal intel 17959 | -5/Proximity Caves | Attracted the attention of an 0b10 checkpoint 18014 | -5/Proximity Caves | Spotted B-75 Beast 18018 | -5/Proximity Caves | Destroyed B-75 Beast 18145 | -5/Proximity Caves | Entered Factory 18145 | -5/Factory | Accompanied by 2 allies 18146 | -5/Factory | Loaded intel: 67 trap records 18148 | -5/Factory | Loaded intel: 20 terminal locations 18158 | -5/Factory | Identified exit to Upper Caves 18366 | -5/Factory | Reached level 23 18403 | -5/Factory | Identified exit to Factory 18403 | -5/Factory | Discovered exit to Factory (range 7) 18435 | -5/Factory | Destroyed 16 combat bots 18435 | -5/Factory | Garrison activated, responded to threat 18475 | -5/Factory | Destroyed 7 combat bots 18704 | -5/Factory | Destroyed 8 combat bots 18969 | -5/Factory | Garrison activated, responded to threat 19116 | -5/Factory | Reached level 24 19252 | -5/Factory | Spotted B-75 Beast 19491 | -5/Factory | Fabricated Imp. System Restoration Module? 19498 | -5/Factory | Fabricated Exp. Cesium-ion Thruster (x1) 19526 | -5/Factory | Fabricated Exp. Cesium-ion Thruster? 19532 | -5/Factory | Fabricated Mni. Smartbomb Launcher? 19603 | -5/Factory | Garrison activated, responded to threat 19671 | -5/Factory | Fabricated Exp. Cesium-ion Thruster (x1) 19676 | -5/Factory | Fabricated EM Disruption Field (x1) 19702 | -5/Factory | P-70 Sage assimilated hostile G-50 Soldier 19730 | -5/Factory | Local fabrication network quarantined 19752 | -5/Factory | Manually triggered Chute Trap 19752 | -5/Factory | Sucked down chute 19752 | -5/Factory | Entered Waste 19755 | -5/Waste | 1 allies followed down the chute 19758 | -5/Waste | Spotted C-40 Crusher 19764 | -5/Waste | Spotted C-40 Crusher 19767 | -5/Waste | EMP discharged 19777 | -5/Waste | Spotted C-40 Crusher 19779 | -5/Waste | Spotted C-40 Crusher 19779 | -5/Waste | Spotted C-40 Crusher 19780 | -5/Waste | Spotted C-40 Crusher 19782 | -5/Waste | Identified exit to Factory 19782 | -5/Waste | Discovered exit to Factory (range 14) 19789 | -5/Waste | Entered Factory 19807 | -5/Factory | Discovered exit to Factory (range 29) 20143 | -5/Factory | Garrison activated, responded to threat 20239 | -5/Factory | Spotted B-75 Beast 20362 | -5/Factory | Destroyed 9 combat bots 20391 | -5/Factory | Destroyed B-75 Beast 20477 | -5/Factory | Garrison activated, responded to threat 20536 | -5/Factory | Reached level 25 20731 | -5/Factory | Fabricated Mni. Fusion Reactor (x1) 20762 | -5/Factory | Fabricated Mni. Fusion Reactor (x1) 20788 | -5/Factory | Local fabrication network quarantined 20846 | -5/Factory | Incoming investigation squad redirected 20921 | -5/Factory | Entered Upper Caves 20921 | -5/Upper Caves | Accompanied by 14 allies 20922 | -5/Upper Caves | Identified exit to Upper Caves 21033 | -5/Upper Caves | Attracted the attention of an 0b10 checkpoint 21071 | -5/Upper Caves | Learned Research stockpile data 21071 | -5/Upper Caves | Learned Extension terminal intel 21071 | -5/Upper Caves | Learned Research garrison access intel 21072 | -5/Upper Caves | Attracted the attention of an 0b10 base 21080 | -5/Upper Caves | Learned Factory stockpile data 21099 | -5/Upper Caves | Destroyed 7 combat bots 21403 | -5/Upper Caves | Entered another Upper Caves area 21403 | -5/Upper Caves | Accompanied by 14 allies 21404 | -5/Upper Caves | Identified exit to Zhirov 21425 | -5/Upper Caves | Discovered exit to Factory (range 29) 21543 | -5/Upper Caves | Learned Extension trap positions 21543 | -5/Upper Caves | Learned Extension terminal intel 21543 | -5/Upper Caves | Learned Armory security intel 21544 | -5/Upper Caves | Attracted the attention of an 0b10 base 21577 | -5/Upper Caves | Learned 8 Factory zone layouts 21583 | -5/Upper Caves | Destroyed 11 combat bots 21705 | -5/Upper Caves | Encountered a Warlord checkpoint 22070 | -5/Upper Caves | Entered Zhirov 22070 | -5/Zhirov | Accompanied by 14 allies 22070 | -5/Zhirov | Identified exit to Proximity Caves 22070 | -5/Zhirov | Discovered exit to Proximity Caves (range 3) 22073 | -5/Zhirov | Met Zhirov 22076 | -5/Zhirov | Learned location of Testing (-2) 22078 | -5/Zhirov | Zhirov requested help retrieving the SGEMP Prototype 22082 | -5/Zhirov | Found Alien Artifact 22082 | -5/Zhirov | Identified Integrated Reactor 22082 | -5/Zhirov | Installed Integrated Reactor, increased core energy generation (+10) 22107 | -5/Zhirov | Found Alien Artifact 22157 | -5/Zhirov | Entered Proximity Caves 22157 | -4/Proximity Caves | Accompanied by 14 allies 22159 | -4/Proximity Caves | Learned Research garrison access intel 22231 | -4/Proximity Caves | Spotted B-86 Titan 22245 | -4/Proximity Caves | Destroyed B-86 Titan 22248 | -4/Proximity Caves | Discovered exit to Factory (range 23) 22282 | -4/Proximity Caves | Attracted the attention of an 0b10 outpost 22284 | -4/Proximity Caves | Reached level 26 22687 | -4/Proximity Caves | Entered Factory 22687 | -4/Factory | Accompanied by 4 allies 22688 | -4/Factory | Identified exit to Upper Caves 22688 | -4/Factory | Identified exit to Armory 22755 | -4/Factory | Identified Transdimensional Reconstructor 22874 | -4/Factory | Spotted B-86 Titan 23200 | -4/Factory | Identified exit to Research 23200 | -4/Factory | Discovered exit to Research (range 19) 23393 | -4/Factory | Garrison activated, responded to threat 23414 | -4/Factory | Reached level 27 23492 | -4/Factory | Destroyed 7 combat bots 23600 | -4/Factory | Fabricated Adv. Armor Integrity Analyzer (x1) 23621 | -4/Factory | Fabricated Exp. System Shield (x1) 23629 | -4/Factory | Fabricated Reaction Control System (x1) 23660 | -4/Factory | Fabricated Imp. Phase Shifter (x1) 23720 | -4/Factory | Fabricated Adv. Thermal Shield? 23733 | -4/Factory | Fabricated Exp. Hacking Suite (x1) 23750 | -4/Factory | Repaired Broken Imp. Dynamic Insulation System? 23791 | -4/Factory | Local fabrication network quarantined 23815 | -4/Factory | Destroyed 7 combat bots 23892 | -4/Factory | Spotted B-86 Titan 23894 | -4/Factory | Incoming assault squad redirected 23910 | -4/Factory | Manually triggered Chute Trap 23910 | -4/Factory | Sucked down chute 23910 | -4/Factory | Entered Waste 23913 | -4/Waste | Spotted C-40 Crusher 23917 | -4/Waste | Spotted C-40 Crusher 23920 | -4/Waste | Destroyed C-40 Crusher 23923 | -4/Waste | Destroyed C-40 Crusher 23924 | -4/Waste | Spotted C-40 Crusher 23925 | -4/Waste | EMP discharged 23929 | -4/Waste | Destroyed C-40 Crusher 23931 | -4/Waste | Spotted C-40 Crusher 23936 | -4/Waste | Destroyed C-40 Crusher 23937 | -4/Waste | Spotted C-40 Crusher 23937 | -4/Waste | Destroyed C-40 Crusher 23939 | -4/Waste | Spotted C-40 Crusher 23939 | -4/Waste | Identified exit to Factory 23939 | -4/Waste | Discovered exit to Factory (range 12) 23943 | -4/Waste | Destroyed C-40 Crusher 23956 | -4/Waste | Entered Factory 24110 | -4/Factory | Discovered exit to Research (range 29) 24312 | -4/Factory | Spotted B-86 Titan 24320 | -4/Factory | Garrison activated, responded to threat 24543 | -4/Factory | Destroyed 8 combat bots 24949 | -4/Factory | Fabricated Adv. Reaction Control System (x1) 24957 | -4/Factory | Fabricated System Purifier (x1) 24968 | -4/Factory | Fabricated Adv. Focal Shield (x2) 24975 | -4/Factory | Fabricated Imp. Shock Absorption System (x1) 25021 | -4/Factory | Entered Armory 25021 | -4/Armory | Accompanied by 3 allies 25023 | -4/Armory | Reached level 28 25235 | -4/Armory | Found Prototype Launcher 25235 | -4/Armory | Identified Com. Tesla Bomb Launcher 25249 | -4/Armory | Destroyed 14 combat bots 25258 | -4/Armory | Build established: Machinist-Scout 25390 | -4/Armory | Discovered exit to Research (range 10) 25462 | -4/Armory | Spotted B-86 Titan 25469 | -4/Armory | Destroyed B-86 Titan 25521 | -4/Armory | First assault squad dispatched 25526 | -4/Armory | Destroyed 15 combat bots 25549 | -4/Armory | Incoming assault squad redirected 25671 | -4/Armory | Identified exit to Lab 25671 | -4/Armory | Discovered exit to Lab (range 20) 25917 | -4/Armory | Fabricated P-80 Master? 25932 | -4/Armory | Fabricated H-77 Assassin (x2) 25933 | -4/Armory | Fabricated M-36 Artificer (x1) 25979 | -4/Armory | Fabricated H-77 Assassin? 25980 | -4/Armory | Fabricated M-36 Artificer? 26004 | -4/Armory | Destroyed 9 combat bots 26044 | -4/Armory | Fabricated H-77 Assassin? 26044 | -4/Armory | Incoming assault squad redirected 26125 | -4/Armory | Entered Lab 26125 | -4/Lab | Accompanied by 5 allies 26125 | -4/Lab | Discovered exit to Research (range 9) 26127 | -4/Lab | Unable to decrypt terminal 26127 | -4/Lab | Opened the door to a hidden lab 26127 | -4/Lab | Detected by scanners 26128 | -4/Lab | Gained access to the hidden lab's interior 26128 | -4/Lab | Reached level 29 26128 | -4/Lab | Unable to decrypt terminal 26134 | -4/Lab | Found Alien Artifact 26134 | -4/Lab | Identified Integrated Dissipator 26134 | -4/Lab | Installed Integrated Dissipator, increased core heat dissipation (+20) 26136 | -4/Lab | Found Core Expander 26136 | -4/Lab | Installed Core Expander, added new Utility slot 26144 | -4/Lab | Found Prototype Hackware 26144 | -4/Lab | Identified Deep Network Scanner 26147 | -4/Lab | Found Prototype Protection 26147 | -4/Lab | Identified Hvy. Regenerative Plating 26153 | -4/Lab | Found Prototype Energy Cannon 26153 | -4/Lab | Identified Potential Cannon 26157 | -4/Lab | Found Prototype Energy Gun 26157 | -4/Lab | Identified Hyp. EM Gauss Rifle 26161 | -4/Lab | Unable to decrypt terminal 26163 | -4/Lab | Found Prototype Special Weapon 26163 | -4/Lab | Identified Gui. Remote Datajack 26169 | -4/Lab | Confronted by A5 26219 | -4/Lab | Destroyed A5 26230 | -4/Lab | Found Prototype Protection 26230 | -4/Lab | Identified Med. Regenerative Plating 26255 | -4/Lab | Found Exp. System Shield 26272 | -4/Lab | Entered Research 26273 | -3/Research | Identified exit to Research 26275 | -3/Research | Loaded intel: 19 terminal locations 26276 | -3/Research | Loaded intel: 2 garrison access locations 26357 | -3/Research | Garrison activated, responded to threat 26392 | -3/Research | Incoming investigation squad redirected 26430 | -3/Research | Intercept squad dispatched 26438 | -3/Research | Build established: Wizard-Scout 26440 | -3/Research | Spotted Tracker 26441 | -3/Research | Destroyed Tracker 26446 | -3/Research | Found Prototype Device 26447 | -3/Research | Identified Exp. Phase Shifter 26474 | -3/Research | Spotted Combat Programmer 26480 | -3/Research | Destroyed Combat Programmer 26486 | -3/Research | Identified exit to Quarantine 26486 | -3/Research | Discovered exit to Quarantine (range 24) 26496 | -3/Research | Incoming investigation squad redirected 26522 | -3/Research | First assault squad dispatched 26542 | -3/Research | Reached level 30 26542 | -3/Research | Upgraded with Power slot (x1) 26542 | -3/Research | Upgraded with Propulsion slot (x1) 26544 | -3/Research | Spotted B-86 Titan 26547 | -3/Research | Destroyed B-86 Titan 26675 | -3/Research | Intercept squad dispatched 26676 | -3/Research | Spotted Tracker 26679 | -3/Research | Spotted Tracker 26681 | -3/Research | Destroyed Tracker 26684 | -3/Research | Destroyed Tracker 26734 | -3/Research | Destroyed 10 combat bots 26749 | -3/Research | Spotted Combat Programmer 26752 | -3/Research | Destroyed Combat Programmer 26759 | -3/Research | Spotted Combat Programmer 26764 | -3/Research | Destroyed Combat Programmer 26767 | -3/Research | Found Exp. Focal Shield 27046 | -3/Research | Spotted B-86 Titan 27061 | -3/Research | Intercept squad dispatched 27079 | -3/Research | Spotted Tracker 27082 | -3/Research | Destroyed Tracker 27113 | -3/Research | Destroyed 7 combat bots 27128 | -3/Research | Spotted Combat Programmer 27155 | -3/Research | Spotted B-86 Titan 27197 | -3/Research | Destroyed Combat Programmer 27221 | -3/Research | Intercept squad dispatched 27246 | -3/Research | Spotted Tracker 27249 | -3/Research | Destroyed Tracker 27275 | -3/Research | Found Prototype Launcher 27275 | -3/Research | Identified Hellfire Missile Launcher 27288 | -3/Research | Incoming assault squad redirected 27330 | -3/Research | Spotted Combat Programmer 27334 | -3/Research | Destroyed Combat Programmer 27350 | -3/Research | Fabricated Exp. Q-thruster? 27352 | -3/Research | Intercept squad dispatched 27359 | -3/Research | Reached level 31 27379 | -3/Research | Spotted Tracker 27385 | -3/Research | Destroyed Tracker 27388 | -3/Research | Fabricated Exp. Q-thruster? 27409 | -3/Research | Destroyed 19 combat bots 27412 | -3/Research | Spotted Combat Programmer 27462 | -3/Research | Destroyed Combat Programmer 27470 | -3/Research | Fabricated Mni. Fusion Reactor (x1) 27507 | -3/Research | Fabricated Exp. Q-thruster (x1) 27512 | -3/Research | Intercept squad dispatched 27513 | -3/Research | Spotted Tracker 27513 | -3/Research | Spotted Tracker 27522 | -3/Research | Destroyed Tracker 27523 | -3/Research | Destroyed Tracker 27553 | -3/Research | Incoming investigation squad redirected 27571 | -3/Research | Local fabrication network quarantined 27575 | -3/Research | Spotted Combat Programmer 27580 | -3/Research | Entered Quarantine 27583 | -3/Quarantine | Found Alien Artifact 27585 | -3/Quarantine | Identified Subatomic Replicator 27639 | -3/Quarantine | Cryocooling Duct disabled 27654 | -3/Quarantine | Ambient heat levels rising (+20) 27654 | -3/Quarantine | Non-combat units ordered to evacuate 27669 | -3/Quarantine | Found Alien Artifact 27669 | -3/Quarantine | Identified Matter Drive 27678 | -3/Quarantine | Intercept squad dispatched 27678 | -3/Quarantine | Met incapacitated Sigix Warrior 27678 | -3/Quarantine | Lockdown squad dispatched 27678 | -3/Quarantine | Acquired the access code to the Sigix quarantine chamber 27678 | -3/Quarantine | Unlocked Sigix quarantine chamber 27686 | -3/Quarantine | Spotted Tracker 27686 | -3/Quarantine | Spotted Tracker 27689 | -3/Quarantine | Destroyed Tracker 27692 | -3/Quarantine | Destroyed Tracker 27696 | -3/Quarantine | Found Alien Artifact 27696 | -3/Quarantine | Identified Terrabomb 27696 | -3/Quarantine | Used Terrabomb 27708 | -3/Quarantine | Found Alien Artifact 27708 | -3/Quarantine | Identified Hpw. Transdimensional Reconstructor 27708 | -3/Quarantine | Warped through subspace 27721 | -3/Quarantine | Found Alien Artifact 27721 | -3/Quarantine | Identified Dimensional Node Initializer 27721 | -3/Quarantine | Initialized slip node 27725 | -3/Quarantine | Found Hpw. Transdimensional Reconstructor 27731 | -3/Quarantine | Spotted Combat Programmer 27731 | -3/Quarantine | Spotted Combat Programmer 27762 | -3/Quarantine | Garrison activated, responded to threat 27763 | -3/Quarantine | Destroyed Combat Programmer 27766 | -3/Quarantine | Destroyed Combat Programmer 27797 | -3/Quarantine | Entered Research 27799 | -2/Research | Loaded intel: 3 garrison access locations 27799 | -2/Research | Reached level 32 27799 | -2/Research | Upgraded with Weapon slot (x1) 27805 | -2/Research | Destroyed 7 combat bots 27831 | -2/Research | Identified exit to Access 27831 | -2/Research | Discovered exit to Access (range 13) 27880 | -2/Research | Intercept squad dispatched 27897 | -2/Research | Spotted B-90 Cyclops 27898 | -2/Research | Spotted Tracker 27900 | -2/Research | Spotted Tracker 27902 | -2/Research | Destroyed Tracker 27905 | -2/Research | Destroyed Tracker 27911 | -2/Research | Found Prototype Energy Gun 27911 | -2/Research | Identified Immobilizer 27940 | -2/Research | Spotted Combat Programmer 27944 | -2/Research | Destroyed Combat Programmer 28006 | -2/Research | Fabricated Exp. Q-thruster? 28008 | -2/Research | Intercept squad dispatched 28010 | -2/Research | Spotted Combat Programmer 28015 | -2/Research | Destroyed Combat Programmer 28031 | -2/Research | Spotted Tracker 28031 | -2/Research | Spotted Tracker 28031 | -2/Research | Spotted Tracker 28034 | -2/Research | Incoming investigation squad redirected 28040 | -2/Research | Destroyed Tracker 28041 | -2/Research | Destroyed Tracker 28045 | -2/Research | Fabricated Exp. Q-thruster (x1) 28045 | -2/Research | Destroyed Tracker 28047 | -2/Research | First assault squad dispatched 28071 | -2/Research | Incoming assault squad redirected 28080 | -2/Research | Spotted Combat Programmer 28085 | -2/Research | Destroyed Combat Programmer 28095 | -2/Research | Spotted Combat Programmer 28095 | -2/Research | Spotted Combat Programmer 28102 | -2/Research | Destroyed Combat Programmer 28107 | -2/Research | Destroyed Combat Programmer 28134 | -2/Research | Destroyed 9 combat bots 28168 | -2/Research | Identified exit to Testing 28208 | -2/Research | Intercept squad dispatched 28223 | -2/Research | Spotted Tracker 28223 | -2/Research | Spotted Tracker 28223 | -2/Research | Spotted Tracker 28226 | -2/Research | Destroyed Tracker 28231 | -2/Research | Destroyed Tracker 28233 | -2/Research | Spotted Combat Programmer 28239 | -2/Research | Destroyed Combat Programmer 28252 | -2/Research | Spotted Combat Programmer 28256 | -2/Research | Destroyed Combat Programmer 28258 | -2/Research | Fabricated Thermal Barrier? 28258 | -2/Research | Destroyed Tracker 28295 | -2/Research | Spotted B-90 Cyclops 28299 | -2/Research | Local fabrication network quarantined 28305 | -2/Research | Exp. System Shield fried by hacking feedback 28312 | -2/Research | Garrison activated, responded to threat 28315 | -2/Research | Reached level 33 28316 | -2/Research | Spotted Combat Programmer 28316 | -2/Research | Upgraded with Utility slot (x1) 28321 | -2/Research | Entered Testing 28327 | -2/Testing | Found Prototype Energy Cannon 28328 | -2/Testing | Identified Imp. Potential Cannon 28339 | -2/Testing | Found Prototype Ballistic Cannon 28339 | -2/Testing | Identified Perforator 28347 | -2/Testing | Found Prototype Launcher 28347 | -2/Testing | Identified Tactical Quantum Warhead 28356 | -2/Testing | Found Prototype Energy Cannon 28356 | -2/Testing | Identified Disintegrator 28365 | -2/Testing | Protovariant out of control (PG-0K7GFW4B8C) 28365 | -2/Testing | Unleashed a protovariant (PG-0K7GFW4B8C) 28375 | -2/Testing | Spotted Striker 28375 | -2/Testing | Spotted Striker 28382 | -2/Testing | Incoming assault squad redirected 28383 | -2/Testing | Found Exp. Shock Absorption System 28390 | -2/Testing | Spotted PG-0K7GFW4B8C 28400 | -2/Testing | Spotted Investigator 28407 | -2/Testing | Incoming investigation squad redirected 28427 | -2/Testing | Intercept squad dispatched 28441 | -2/Testing | Spotted Tracker 28441 | -2/Testing | Spotted Tracker 28446 | -2/Testing | Destroyed Tracker 28447 | -2/Testing | Destroyed Tracker 28457 | -2/Testing | Fabricated Cld. Q-thruster? 28466 | -2/Testing | Spotted Combat Programmer 28467 | -2/Testing | Spotted Combat Programmer 28488 | -2/Testing | Spotted Alpha 7 28509 | -2/Testing | Stole the SGEMP Prototype 28523 | -2/Testing | Spotted Fortress 28558 | -2/Testing | Destroyed Fortress 28562 | -2/Testing | Found EM Dispersion Field 28563 | -2/Testing | Intercept squad dispatched 28569 | -2/Testing | Identified exit to Section 7 28569 | -2/Testing | Discovered exit to Section 7 (range 6) 28573 | -2/Testing | Entered Section 7 28574 | -2/Section 7 | Spotted S7 Guard 28580 | -2/Section 7 | Found Integrated Dissipator 28580 | -2/Section 7 | Installed Integrated Dissipator, increased core heat dissipation (+20) 28595 | -2/Section 7 | Found Alien Artifact 28607 | -2/Section 7 | Identified Core Reset Matrix 28615 | -2/Section 7 | Found Alien Artifact 28620 | -2/Section 7 | Identified Core Regenerator 28620 | -2/Section 7 | Used Core Regenerator, restored core integrity (+69) 28643 | -2/Section 7 | Spotted S7 Guard 28645 | -2/Section 7 | Found Alien Artifact 28645 | -2/Section 7 | Identified Integrated Heat Negator 28645 | -2/Section 7 | Installed Integrated Heat Negator, increased core heat dissipation (+40) 28652 | -2/Section 7 | Found Integrated Reactor 28652 | -2/Section 7 | Installed Integrated Reactor, increased core energy generation (+10) 28670 | -2/Section 7 | Spotted B-90 Cyclops 28673 | -2/Section 7 | Spotted S7 Guard 28676 | -2/Section 7 | Found Alien Artifact 28676 | -2/Section 7 | Identified Integrated Singularity Reactor 28676 | -2/Section 7 | Installed Integrated Singularity Reactor, increased core energy generation (+20) 28682 | -2/Section 7 | Intercept squad dispatched 28684 | -2/Section 7 | Discovered exit to Access (range 7) 28690 | -2/Section 7 | Spotted Tracker 28691 | -2/Section 7 | Spotted Combat Programmer 28691 | -2/Section 7 | Spotted Tracker 28699 | -2/Section 7 | Destroyed Tracker 28701 | -2/Section 7 | Destroyed Tracker 28707 | -2/Section 7 | Destroyed Combat Programmer 28714 | -2/Section 7 | Spotted Combat Programmer 28718 | -2/Section 7 | Destroyed Combat Programmer 28735 | -2/Section 7 | Reached level 34 28738 | -2/Section 7 | Found Immobilizer 28805 | -2/Section 7 | Found Integrated Reactor 28805 | -2/Section 7 | Installed Integrated Reactor, increased core energy generation (+10) 28815 | -2/Section 7 | Found Alien Artifact 28815 | -2/Section 7 | Identified Integrity Redistributor 28815 | -2/Section 7 | Used Integrity Redistributor, redistributed integrity from core (-2) 28819 | -2/Section 7 | Spotted S7 Guard 28825 | -2/Section 7 | Destroyed S7 Guard 28827 | -2/Section 7 | Found Alien Artifact 28827 | -2/Section 7 | Identified Core Membrane 28827 | -2/Section 7 | Installed Core Membrane, gained immunity to corruption 28841 | -2/Section 7 | Spotted Alpha 7 28841 | -2/Section 7 | Spotted Alpha 7 28865 | -2/Section 7 | Spotted B-99 Colossus 28872 | -2/Section 7 | Found Alien Artifact 28873 | -2/Section 7 | Identified LRC Storage 28873 | -2/Section 7 | Installed LRC Storage, increased inventory capacity (+2) 28875 | -2/Section 7 | Found Alien Artifact 28876 | -2/Section 7 | Identified LRC Energy Well 28876 | -2/Section 7 | Installed LRC Energy Well, increased energy storage capacity (+250) 28886 | -2/Section 7 | Intercept squad dispatched 28891 | -2/Section 7 | Found Terrabomb 28892 | -2/Section 7 | Found Terrabomb 28893 | -2/Section 7 | Spotted Tracker 28893 | -2/Section 7 | Spotted Tracker 28894 | -2/Section 7 | Found Transdimensional Reconstructor 28897 | -2/Section 7 | Destroyed Tracker 28901 | -2/Section 7 | Destroyed Tracker 28924 | -2/Section 7 | Spotted Combat Programmer 28934 | -2/Section 7 | Spotted Combat Programmer 28995 | -2/Section 7 | Destroyed Combat Programmer 28996 | -2/Section 7 | Destroyed Combat Programmer 29003 | -2/Section 7 | Spotted Striker 29003 | -2/Section 7 | Spotted Striker 29005 | -2/Section 7 | Spotted Executioner 29005 | -2/Section 7 | Spotted Executioner 29009 | -2/Section 7 | Activated Sigix Exoskeleton 29009 | -2/Section 7 | Unable to understand communications from Sigix Warrior 29023 | -2/Section 7 | Spotted Executioner 29023 | -2/Section 7 | Spotted Executioner 29035 | -2/Section 7 | Scanned by Researcher 29065 | -2/Section 7 | Garrison activated, responded to threat 29126 | -2/Section 7 | Destroyed B-99 Colossus 29180 | -2/Section 7 | Reached level 35 29216 | -2/Section 7 | Destroyed 54 combat bots 29257 | -2/Section 7 | Destroyed Alpha 7 29260 | -2/Section 7 | Found Exp. Target Analyzer 29272 | -2/Section 7 | Entered Access 29272 | -1/Access | Accompanied by 1 ally (Sigix Warrior) 29273 | -1/Access | Attacked by Zhirov 29282 | -1/Access | Destroyed Zhirov 29283 | -1/Access | Allies destroyed Svarog 29291 | -1/Access | Destroyed Perun 29294 | -1/Access | Found Exp. Terrain Scanner 29308 | -1/Access | Garrison activated, responded to threat 29342 | -1/Access | Spotted Executioner 29343 | -1/Access | Spotted Striker 29348 | -1/Access | Destroyed Striker 29354 | -1/Access | Destroyed Executioner 29363 | -1/Access | Reached level 36 29453 | -1/Access | Identified exit to Command 29453 | -1/Access | Discovered exit to Command (range 18) 29496 | -1/Access | Used Terrabomb 29496 | -1/Access | Spotted B-99 Colossus 29504 | -1/Access | Destroyed 47 combat bots 29509 | -1/Access | Spotted Investigator 29511 | -1/Access | Destroyed B-99 Colossus 29523 | -1/Access | Spotted Striker 29523 | -1/Access | Spotted Striker 29523 | -1/Access | Spotted Executioner 29526 | -1/Access | Destroyed Striker 29529 | -1/Access | Destroyed Executioner 29536 | -1/Access | Destroyed Striker 29545 | -1/Access | Destroyed Investigator 29583 | -1/Access | Spotted B-99 Colossus 29584 | -1/Access | Spotted Executioner 29585 | -1/Access | Destroyed 20 combat bots 29595 | -1/Access | Build established: Generator-Scout 29598 | -1/Access | Reached level 37 29642 | -1/Access | Destroyed 12 combat bots 29663 | -1/Access | Intercept squad dispatched 29663 | -1/Access | Spotted Executioner 29663 | -1/Access | Destroyed Executioner 29677 | -1/Access | Spotted Executioner 29677 | -1/Access | Spotted Striker 29681 | -1/Access | Spotted Tracker 29682 | -1/Access | Spotted Tracker 29687 | -1/Access | Destroyed Striker 29693 | -1/Access | Destroyed Tracker 29699 | -1/Access | Destroyed Tracker 29723 | -1/Access | Destroyed Executioner 29729 | -1/Access | Spotted Combat Programmer 29744 | -1/Access | Destroyed 23 combat bots 29752 | -1/Access | Spotted Combat Programmer 29764 | -1/Access | Destroyed Combat Programmer 29778 | -1/Access | Destroyed Combat Programmer 29801 | -1/Access | Spotted Executioner 29801 | -1/Access | Spotted Striker 29806 | -1/Access | Destroyed Executioner 29809 | -1/Access | Destroyed Striker 29811 | -1/Access | Spotted Striker 29825 | -1/Access | Spotted Executioner 29825 | -1/Access | Spotted Striker 29825 | -1/Access | Spotted Striker 29825 | -1/Access | Spotted Striker 29825 | -1/Access | Spotted Executioner 29827 | -1/Access | Destroyed Executioner 29830 | -1/Access | Destroyed Executioner 29833 | -1/Access | Destroyed Striker 29839 | -1/Access | Destroyed Striker 29841 | -1/Access | Sterilization system engaged 29842 | -1/Access | Identified exit to Surface 29842 | -1/Access | Discovered exit to Surface (range 14) 29853 | -1/Access | Spotted B-99 Colossus 29853 | -1/Access | Spotted B-99 Colossus 29863 | -1/Access | Destroyed 14 combat bots 29868 | -1/Access | Destroyed B-99 Colossus 29884 | -1/Access | Destroyed Striker 29896 | -1/Access | Destroyed B-99 Colossus 29899 | -1/Access | Destroyed Striker 29920 | -1/Access | Spotted Striker 29920 | -1/Access | Spotted Executioner 29922 | -1/Access | Used Terrabomb 29923 | -1/Access | Core integrity fell below 50% 29934 | -1/Access | Spotted Executioner 29938 | -1/Access | Spotted Striker 29938 | -1/Access | Spotted Striker 29944 | *** | Escaped! Last Messages --------------- 29940_ Slug penetrates Sealed Heavy Doors. 29940_ Destroyed Impulse Thruster Array. 29940_ HV Slug penetrates Striker. 29940_ HV Slug penetrates Sealed Heavy Doors. 29940_ HV Slug penetrates Striker. 29940_ HV Slug penetrates Sealed Heavy Doors. 29940_ HV Slug penetrates Striker. 29940_ Striker knocked back. 29940_ HV Slug penetrates Sealed Heavy Doors. 29940_ HV Slug penetrates Striker. 29940_ HV Slug penetrates Sealed Heavy Doors. 29940_ HV Slug penetrates Striker. 29940_ Striker knocked back. 29940_ HV Slug penetrates Sealed Heavy Doors. 29942_ Slug penetrates Sealed Barrier. 29943_ K-01 Serf collects debris. 29943_ Penetrated by Slug. 29943_ Slug penetrates Sealed Barrier. [Achievement: Epsilon Run] [Achievement: True Flier] Map ----- +----------------------------------------------------+ | ########## [ """""" # #?# ? # | | ########## """""" # #?? ???? | | #####/############### """""" # ###?? ? ? | | ### +k """""" #k ##? ?? # | | ### ############## ! """""" #=!######+### | | ###==%=######### #### R +=%=% | | |%!!### " # k=[ | | ###!*!=# " #=%#####w ### | | ###!!^%" ;u u #*[#?##? ???# | | #!^^u""""*!""";;;;;#####;;;#########= ##?#? ### | | #!/**" %= ; ; " #!=###?# ?### | | "%==%" %=* g ; ; """ #=%#?#?#k?### | | "![%="% %*= p ; ; """ #%!#?### ### | | /!%=[t* =" ; ; " #=*##### w##? | | "%*=*%| "%" ; ; # ##### ?#?# | | "==!!" !![ ; ; +=!###?# k?## | | " ![" [%! ; ; #Y ##??# ##? | | " * """"==""""""; ; # %####? k#?# | | """=% " ;;;;;"""###*!##??? ### | | """ " !%* ;;" #%[##### w### | | m " """"""""""=";;;;;;;;k"#######!!#?### ### | | " " !! """" K " u /!! !#####? ?## | | k " " !%! """" " %![%##### #?# | | = """ h h! """" "" " !=##?## ### | | k """" " " " |##### ### | | """" " "@ " " = ##### ### | | = """" " "" " " k!##### #?# | | ! """" " " " "#### ?### | | """"""/""" !%! """" """ "" " ##### # | | "" " ! """" """" "" ! ##### #? | | "" " """" """"T" ! ##### ?? | | "" """""""""###""";;;##""###k###/ "#### # | | "" " ### ###"####### k##### # | | "" " ### ###"####### ##### ?# | | "" " ### # ! # #####? # | | #" " ### ;# # ##?## ? | | #" " ### # / #####? # | | #" " ### # " " # #####? ### | | ## " ## # """ # e | | ## " ## # """ # | | ####"""""" ### #uk =" # ########## | | ####### #### #[=/ * # #########? | | ##?###### #### ##!*=! ! # # ? | | ############ #### ######+###### # | | ############## ?############"!##### # | | ########################%%##### # | | ########################!!##### # | | ########################=[#?### # | | ?########################!###### # """"" | | #### ################ # ###### # """"" | +----------------------------------------------------+ Best States ------------- Heat Dissipation 201 Energy Generation 146 Energy Capacity 1440 Matter Stores 1800 Matter Capacity 1900 Sight Range 20 Robot Scan Range 44 Terrain Scan Range 30 Terrain Scan Density 510 Power Amplification 40 EM Shielding 4 Armor Coverage 225 Resistance: KI 65 Resistance: TH 85 Resistance: EX 100 Resistance: EM 100 Resistance: I 35 Resistance: S 35 Resistance: P 35 Phase Shifting 20 Evasion (%) 102 Target Analysis 12 Armor Integrity Analysis 66 Matter Filtering 30 Kinecelleration 40 Offensive Hacking 67 Defensive Hacking 53 Item Schematics ----------------- Shock Absorption System | -8/Materials | Scanalyzed Imp. Terrain Scanner | -8/Materials | Scanalyzed Structural Scanner | -8/Materials | Scanalyzed Hacking Suite | -8/Materials | Hacked System Shield | -8/Materials | Hacked Adv. Terrain Scanner | -8/Materials | Hacked Adv. Sensor Array | -8/Materials | Hacked Adv. Signal Interpreter | -8/Materials | Hacked Imp. Flight Unit | -8/Materials | Hacked Lgt. Deuterium Engine | -8/Materials | Hacked Kinecellerator | -8/Materials | Scanalyzed Maneuvering Thrusters | -8/Materials | Hacked Imp. VTOL Module | -8/Materials | Hacked Hpw. Tractor Beam | -8/Materials | Extracted Airjet | -8/Materials | Extracted Lrn. Tractor Beam | -8/Materials | Extracted Pulse Rifle | -8/Materials | Extracted Reclamation Unit | -8/Materials | Extracted EM Shield | -7/Factory | Hacked Imp. Cesium-ion Thruster | -7/Factory | Scanalyzed Imp. Maneuvering Thrusters | -7/Factory | Hacked Imp. Hacking Suite | -7/Factory | Hacked Imp. System Shield | -7/Factory | Hacked Cld. Cesium-ion Thruster | -7/Factory | Hacked Mic. Fission Core | -7/Factory | Hacked Adv. Hacking Suite | -7/Factory | Hacked Adv. System Shield | -7/Factory | Hacked Imp. Thermal Shield | -7/Factory | Hacked Imp. Field Recycling Unit | -7/Factory | Hacked Adv. Field Recycling Unit | -7/Factory | Hacked Matter Filter | -7/Factory | Hacked Magnetic Acceleration Cannon | -7/Factory | Hacked Hvy. Rocket Launcher | -7/Factory | Hacked Imp. Armor Integrity Analyzer | -7/Factory | Hacked Dynamic Insulation System | -7/Factory | Hacked Imp. System Backup Module | -7/Factory | Hacked Imp. Titanium Leg | -7/Factory | Hacked Exp. Sensor Array | -7/Factory | Hacked Wave Gun | -7/Factory | Hacked Nuclear Pulse Array | -7/Factory | Hacked Imp. Recalibrator | -7/Factory | Hacked Phase Cannon | -7/Factory | Hacked Imp. Melee Analysis Suite | -7/Factory | Extracted Imp. Targeting Computer | -7/Factory | Extracted Plasma Sword | -7/Data Miner | Free Cloaking Device | -7/Data Miner | Free Tactical Coordination Suite | -7/Data Miner | Free Exp. Terrain Scanner | -7/Data Miner | Free Exp. Cesium-ion Thruster | -7/Data Miner | Free Exp. Flexi-carbon Leg | -7/Data Miner | Free Lgt. Regenerative Plating | -7/Data Miner | Free Combat Drone Bay | -7/Data Miner | Free Force Rifle | -6/Factory | Hacked Imp. Weapon Cycler | -6/Factory | Hacked Lgt. Antimatter Reactor | -6/Factory | Hacked Adv. Transmission Jammer | -6/Factory | Hacked Imp. Hardlight Generator | -6/Factory | Hacked System Backup Module | -6/Factory | Scanalyzed Exp. Signal Interpreter | -6/Factory | Hacked HERF Cannon | -6/Factory | Hacked Antimatter Reactor | -6/Factory | Hacked Gyrokinetic Inverter | -6/Factory | Hacked Power Amplifier | -6/Factory | Hacked Imp. Heavy Treads | -6/Factory | Hacked Mni. Smartbomb Launcher | -6/Factory | Hacked Imp. System Restoration Module | -6/Factory | Hacked Prc. Matter Filter | -6/Factory | Hacked Cld. Nuclear Pulse Thruster | -6/Factory | Hacked Gravmag Array | -6/Factory | Hacked Recoil Nullifier | -6/Factory | Hacked Imp. Force Booster | -6/Factory | Hacked Quantum Capacitor | -6/Factory | Hacked Arm. Leg | -6/Factory | Hacked Adv. Datajack | -6/Factory | Hacked Triangulator | -6/Factory | Hacked Imp. Linear Gravjet | -6/Factory | Hacked Centrium Wheel | -6/Factory | Hacked Hvy. Siege Treads | -6/Factory | Hacked Adv. Cooling System | -6/Factory | Hacked Cld. Particle Cannon | -6/Factory | Hacked Cld. Pulse Rifle | -6/Factory | Hacked Cld. VTOL Module | -6/Factory | Hacked Phase Shifter | -6/Factory | Scanalyzed Point Defense System | -6/Factory | Hacked Prc. Rocket Launcher | -6/Factory | Scanalyzed Kinetic Spear | -6/Factory | Hacked Enh. Gauss Cannon | -6/Factory | Hacked Hvy. Treads | -6/Factory | Hacked Exp. Power Shielding | -6/Factory | Hacked Exp. Propulsion Shielding | -6/Factory | Hacked Exp. Targeting Computer | -6/Factory | Hacked Imp. Gravmag System | -6/Factory | Hacked Imp. Antigrav System | -6/Factory | Hacked Exp. Terrain Scan Processor | -6/Factory | Hacked Exp. Weapon Shielding | -6/Factory | Hacked Exp. Utility Shielding | -6/Factory | Hacked Lrg. Battery | -6/Factory | Hacked Lrn. Missile Launcher | -6/Factory | Hacked Lrn. Proton Cannon | -6/Factory | Hacked Lrn. Sensor Array | -6/Factory | Hacked Lrn. Terrain Scanner | -6/Factory | Hacked Hvy. Flak Cannon | -6/Factory | Hacked Linear Gravjet | -6/Factory | Hacked Hvy. Machine Gun | -6/Factory | Hacked Adv. Melee Analysis Suite | -6/Factory | Hacked Force Field | -6/Factory | Hacked Imp. Coolant Injector | -6/Factory | Hacked Cld. Airjet | -6/Factory | Hacked Cld. Deuterium Engine | -6/Factory | Hacked Cld. Ion Engine | -6/Factory | Hacked Enh. Autogun | -6/Factory | Hacked Enh. Nuclear Core | -6/Factory | Hacked Enh. Optical Array | -6/Factory | Hacked Imp. Transmission Jammer | -6/Factory | Hacked Prc. Assault Rifle | -6/Factory | Hacked Prc. Beam Rifle | -6/Factory | Hacked Prc. Grenade Launcher | -6/Factory | Hacked Prc. Shock Rifle | -6/Factory | Hacked EM Pulse Cannon | -6/Factory | Hacked EM Pulse Gun | -6/Factory | Hacked EM Shotgun | -6/Factory | Hacked EMP Blaster | -6/Factory | Hacked VTOL Module | -6/Factory | Hacked Imp. Remote Shield | -6/Factory | Hacked Cld. Aerolev Unit | -6/Factory | Hacked System Restoration Module | -6/Factory | Hacked System Guard | -6/Factory | Hacked Reactive Plating | -6/Factory | Hacked Recalibrator | -6/Factory | Hacked Reflective Plating | -6/Factory | Hacked Lyr. Heavy Armor Plating | -6/Factory | Hacked Propulsion Shielding | -6/Factory | Hacked Proton Cannon | -6/Factory | Hacked Proton Missile Launcher | -6/Factory | Hacked Adv. Assault Cannon | -6/Factory | Hacked Adv. Beam Cannon | -6/Factory | Hacked Adv. Beam Rifle | -6/Factory | Hacked Adv. ECM Suite | -6/Factory | Hacked Adv. EMP Blaster | -6/Factory | Hacked Adv. Heat Sink | -6/Factory | Hacked Adv. Weight Redist. System | -6/Factory | Hacked Adv. Visual Processing Unit | -6/Factory | Hacked Adv. Treads | -6/Factory | Hacked Adv. Terrain Scan Processor | -6/Factory | Hacked Adv. Targeting Computer | -6/Factory | Hacked Impact Mace | -6/Factory | Hacked Imp. Weapon Shielding | -6/Factory | Hacked Imp. Actuator Array | -6/Factory | Hacked Imp. Airjet | -6/Factory | Hacked Imp. Aluminum Leg | -6/Factory | Hacked Imp. Assault Rifle | -6/Factory | Hacked Lrg. Matter Pod | -6/Factory | Hacked Hrd. Heavy Armor Plating | -6/Factory | Hacked Hrd. Light Armor Plating | -6/Factory | Hacked Hrd. Medium Armor Plating | -6/Factory | Hacked Adv. Trap Extractor | -6/Factory | Hacked Imp. Component Analysis Suite | -6/Factory | Hacked Riot Gun | -6/Zion | Free Battle Rifle | -6/Zion | Free Slug Cannon | -6/Zion | Free Ripper | -6/Zion | Free Neutrino Core | -5/Factory | Hacked KE Penetrator | -5/Factory | Hacked Katana | -5/Factory | Hacked Mace | -5/Factory | Hacked Maul | -5/Factory | Hacked Antimissile System | -5/Factory | Hacked Variable Charge Gun | -5/Factory | Hacked Hvy. Neutron Cannon | -5/Factory | Hacked Adv. Focal Shield | -5/Factory | Hacked Adv. Shield Generator | -5/Factory | Hacked Adv. Salvage Targeting Computer | -5/Factory | Hacked Imp. Phase Shifter | -5/Factory | Hacked Imp. Plasma Cutter | -5/Factory | Hacked Imp. Focal Shield | -5/Factory | Hacked Adv. Thermal Shield | -5/Factory | Hacked Exp. Heat Sink | -5/Factory | Hacked Exp. Optical Array | -5/Factory | Hacked Adv. Integration Mediator | -5/Factory | Hacked Adv. Core Analyzer | -5/Factory | Hacked Adv. Weapon Cycler | -5/Factory | Hacked Adv. Recalibrator | -5/Factory | Hacked Phase Gun | -5/Factory | Hacked Cld. Fission Core | -5/Factory | Hacked Cld. Gravmag System | -5/Factory | Hacked Cld. Plasma Cannon | -5/Factory | Hacked Cld. Plasma Rifle | -5/Factory | Hacked Prc. Energy Filter | -5/Factory | Hacked Lgt. Angular Momentum Engine | -5/Factory | Hacked Lgt. Armor Plating | -5/Factory | Hacked Lgt. Assault Rifle | -5/Factory | Hacked Cmb. Gravmag System | -5/Factory | Hacked Quantum Rifle | -5/Factory | Hacked Centrium Light Armor Plating | -5/Factory | Hacked Lgt. Cannon | -5/Factory | Hacked Lgt. Treads | -5/Factory | Hacked Lgt. Nuclear Core | -5/Factory | Hacked Hvy. Disruptor Cannon | -5/Factory | Hacked Tesla Rifle | -5/Factory | Hacked Beam Cannon | -5/Factory | Hacked Beam Rifle | -5/Factory | Hacked Biomechanical Wings | -5/Factory | Hacked Datajack | -5/Factory | Hacked Deuterium Engine | -5/Factory | Hacked Disposable Heat Sink | -5/Factory | Hacked Disruptor Cannon | -5/Factory | Hacked Drone Bay | -5/Factory | Hacked Gatling Laser | -5/Factory | Hacked Gravity Neutralizing Apparatus | -5/Factory | Hacked Gauss Cannon | -5/Factory | Hacked Gauss Rifle | -5/Factory | Hacked Gravmag System | -5/Factory | Hacked Great Axe | -5/Factory | Hacked Great Maul | -5/Factory | Hacked Greatsword | -5/Factory | Hacked Grenade Launcher | -5/Factory | Hacked Gui. EMP Blaster | -5/Factory | Hacked Neutron Cannon | -5/Factory | Hacked Nuclear Core | -5/Factory | Hacked Nuclear Pulse Thruster | -5/Factory | Hacked Overload Amplifier | -5/Factory | Hacked Lgt. Particle Reactor | -5/Factory | Scanalyzed Imp. Kinecellerator | -5/Factory | Scanalyzed Adv. Medium Treads | -5/Factory | Hacked Exp. Hacking Suite | -5/Factory | Hacked Exp. System Shield | -5/Factory | Hacked Cld. Field Propulsion Drive | -5/Factory | Hacked Mni. Fusion Reactor | -5/Factory | Hacked EM Disruption Field | -5/Factory | Hacked Imp. Shock Absorption System | -5/Factory | Hacked Imp. Light Armor Plating | -5/Factory | Extracted Visual Processing Unit | -5/Factory | Hacked Weapon Cycler | -5/Factory | Hacked Weapon Shielding | -5/Factory | Hacked Weight Redist. System | -5/Factory | Hacked Welding Torch | -5/Factory | Hacked Wheel | -5/Factory | Hacked Recoil Stabilizer | -5/Factory | Hacked Remote Datajack | -5/Factory | Hacked Remote Force Field | -5/Factory | Hacked Remote Shield | -5/Factory | Hacked Rnf. Deuterium Engine | -5/Factory | Hacked Force Lance | -5/Factory | Hacked Com. HERF Cannon | -5/Factory | Hacked Imp. Launcher Guidance Computer | -5/Factory | Hacked Stasis Canceller | -5/Factory | Hacked Antigrav Array | -5/Factory | Hacked Impulse Thruster | -5/Factory | Hacked Mass Driver | -5/Factory | Hacked Adv. Powered Armor | -5/Factory | Hacked Corruption Screen | -5/Factory | Hacked Adv. Component Analysis Suite | -5/Factory | Hacked Enh. Force Lance | -5/Factory | Hacked Field Propulsion Drive | -5/Factory | Hacked Hvy. Gauss Cannon | -5/Factory | Hacked Dispersion Rifle | -5/Factory | Hacked Adv. Armor Integrity Analyzer | -5/Factory | Hacked Thunder Hammer | -5/Factory | Hacked Reaction Control System | -5/Factory | Hacked Power Sword | -5/Factory | Extracted Hvy. Pick | -5/Factory | Extracted Power Maul | -5/Factory | Extracted Particle Charger | -5/Factory | Extracted Thermal Shield | -5/Factory | Extracted Hpw. Shock Rifle | -5/Factory | Extracted Imp. Arc Projector | -5/Factory | Extracted Matter Compressor | -5/Factory | Extracted Imp. Core Analyzer | -5/Factory | Extracted Hyp. Gauss Cannon | -5/Factory | Extracted Com. Wheel | -5/Factory | Extracted Lightning Gun | -5/Factory | Extracted Hvy. Mace | -5/Factory | Extracted Imp. Salvage Targeting Computer | -5/Factory | Extracted Fusion Compressor | -5/Factory | Extracted Imp. Integration Mediator | -5/Factory | Extracted Imp. Heavy Laser | -5/Factory | Extracted Targeting Computer | -5/Factory | Extracted Assault Drone Bay | -5/Zhirov | Free Imp. Arc Thrower | -5/Zhirov | Free Hyp. Railgun | -4/Factory | Hacked Lgt. Quantum Reactor | -4/Factory | Hacked Linear Accelerator | -4/Factory | Hacked Enh. Nova Cannon | -4/Factory | Hacked Adv. Target Analyzer | -4/Factory | Hacked Adv. Hardlight Generator | -4/Factory | Hacked Nanoactuators | -4/Factory | Hacked Adv. Actuator Array | -4/Factory | Hacked Biometal Leg | -4/Factory | Hacked Biometal Medium Treads | -4/Factory | Hacked Q-thruster | -4/Factory | Hacked Vibroblade | -4/Factory | Hacked Neutron Missile Launcher | -4/Factory | Hacked Nova Cannon | -4/Factory | Hacked Gravity Flail | -4/Factory | Hacked Gamma Bomb Array | -4/Factory | Hacked Diametric Drive | -4/Factory | Hacked Overload Regulator | -4/Factory | Hacked Lrn. Phase Cannon | -4/Factory | Hacked Proton Burst Cannon | -4/Factory | Hacked Assault Cannon | -4/Factory | Hacked Assault Rifle | -4/Factory | Hacked Adv. Coolant Injector | -4/Factory | Hacked Adv. Cryofiber Web | -4/Factory | Hacked Exp. Cooling System | -4/Factory | Hacked Exp. ECM Suite | -4/Factory | Hacked Exp. Field Recycling Unit | -4/Factory | Hacked Exp. Melee Analysis Suite | -4/Factory | Hacked Quantum Reactor | -4/Factory | Hacked Arm. Heavy Treads | -4/Factory | Hacked Imp. Dynamic Insulation System | -4/Factory | Scanalyzed System Purifier | -4/Factory | Hacked Adv. Dynamic Insulation System | -4/Factory | Hacked Adv. Reaction Control System | -4/Factory | Hacked Hvy. Phase Cannon | -4/Factory | Extracted Enh. Quantum Rifle | -4/Factory | Hacked Centrium Leg | -4/Factory | Hacked Stasis Projector | -4/Factory | Hacked Imp. Stasis Canceller | -4/Factory | Hacked Adv. Thermal Generator | -4/Factory | Hacked Cld. Proton Cannon | -4/Factory | Hacked Enh. Armored Medium Treads | -4/Factory | Hacked Adv. Cloaking Device | -4/Factory | Hacked Particle Reactor | -4/Factory | Hacked Cmb. Linear Gravjet | -4/Armory | Hacked Biometal Heavy Treads | -4/Armory | Hacked Railgun | -4/Armory | Hacked Exp. Q-thruster | -3/Research | Hacked Spectral Analyzer | -3/Research | Hacked Cmb. Antigrav System | -3/Research | Hacked Exp. Thermal Shield | -3/Research | Hacked Exp. Energy Well | -3/Research | Scanalyzed Centrium Greatsword | -3/Research | Hacked EM Dispersion Field | -3/Research | Hacked Exp. Armor Integrity Analyzer | -3/Research | Hacked Exp. Shock Absorption System | -3/Research | Hacked Adv. Heavy Treads | -3/Research | Hacked Hellfire Missile Launcher | -3/Research | Scanalyzed Cld. Q-thruster | -3/Research | Hacked Hdn. Centrium Wheel | -3/Quarantine | Hacked Fusion Bomb Launcher | -3/Quarantine | Hacked Centrium Medium Armor Plating | -3/Quarantine | Scanalyzed Thermal Barrier | -3/Quarantine | Hacked Rnf. Quantum Reactor | -3/Quarantine | Hacked Adv. Phase Shifter | -2/Research | Hacked Imp. Q-thruster | -2/Research | Scanalyzed Hdn. Centrium Leg | -2/Section 7 | Hacked Adv. Heavy Siege Treads | -2/Section 7 | Hacked Beam Splitter | -2/Section 7 | Hacked Robot Schematics ------------------ O-24 Administrator | -7/Factory | Hacked S-27 Virus | -7/Data Miner | Free G-50 Soldier | -7/Data Miner | Free L-41 Fighter | -7/Data Miner | Free H-66 Slayer | -7/Data Miner | Free I-36 Angel | -7/Data Miner | Free K-01 Serf | -6/Factory | Hacked M-22 Extractor | -6/Factory | Hacked T-07 Excavator | -6/Factory | Hacked B-48 Gladiator | -6/Factory | Hacked R-06 Scavenger | -6/Factory | Hacked M-28 Smith | -6/Factory | Hacked M-13 Machinist | -6/Factory | Hacked P-70 Sage | -6/Factory | Hacked P-60 Hacker | -6/Factory | Hacked S-10 Pest | -6/Factory | Hacked H-55 Commando | -6/Factory | Hacked G-47 Trooper | -6/Factory | Hacked G-34 Mercenary | -6/Factory | Hacked X-62 Marksman | -6/Factory | Hacked B-36 Bruiser | -6/Factory | Hacked L-31 Rogue | -6/Factory | Hacked O-16 Technician | -6/Factory | Hacked W-25 Informer | -6/Factory | Hacked W-16 Scout | -6/Factory | Hacked D-53 Grenadier | -6/Factory | Hacked I-25 Savior | -6/Factory | Hacked E-15 Imp | -6/Factory | Hacked A-15 Conveyor | -6/Factory | Hacked A-02 Transporter | -6/Factory | Hacked M-14 Sweeper | -6/Factory | Hacked R-10 Processor | -6/Factory | Hacked Y-54 Guardian | -5/Factory | Hacked B-60 Warrior | -5/Factory | Hacked X-72 Disruptor | -5/Factory | Hacked I-47 Archangel | -5/Factory | Hacked W-44 Eye | -4/Factory | Hacked Y-72 Warden | -4/Factory | Hacked Y-64 Sentinel | -4/Factory | Hacked Y-45 Defender | -4/Factory | Hacked S-43 Plague | -4/Factory | Hacked X-82 Rainmaker | -4/Factory | Hacked B-74 Champion | -4/Factory | Hacked L-61 Swordsman | -4/Factory | Hacked D-63 Destroyer | -4/Factory | Hacked M-36 Artificer | -4/Factory | Hacked O-32 Director | -4/Factory | Hacked M-30 Cleanser | -4/Factory | Hacked H-77 Assassin | -4/Factory | Hacked G-67 Veteran | -4/Factory | Hacked P-80 Master | -4/Factory | Hacked C-55 Analyst | -4/Factory | Hacked H-88 Terminator | -2/Section 7 | Hacked G-73 Enforcer | -2/Section 7 | Hacked D-83 Annihilator | -2/Section 7 | Hacked C-65 Expert | -2/Section 7 | Hacked Fabricated ------------ Mic. Fission Core | x2 | -7/Factory Cld. Cesium-ion Thruster | x1 | -7/Factory Dynamic Insulation System | x2 | -7/Factory Cld. Cesium-ion Thruster | x1 | -7/Factory Cld. Cesium-ion Thruster | x1 | -7/Factory Exp. Cesium-ion Thruster | x1 | -6/Factory Exp. Sensor Array | x1 | -6/Factory Exp. Signal Interpreter | x1 | -6/Factory Exp. Terrain Scanner | x1 | -6/Factory Exp. Cesium-ion Thruster | x1 | -6/Factory Imp. System Restoration Module | x1 | -5/Factory Exp. Cesium-ion Thruster | x1 | -5/Factory Exp. Cesium-ion Thruster | x1 | -5/Factory Mni. Smartbomb Launcher | x1 | -5/Factory Exp. Cesium-ion Thruster | x1 | -5/Factory EM Disruption Field | x1 | -5/Factory Mni. Fusion Reactor | x1 | -5/Factory Mni. Fusion Reactor | x1 | -5/Factory Adv. Armor Integrity Analyzer | x1 | -4/Factory Exp. System Shield | x1 | -4/Factory Reaction Control System | x1 | -4/Factory Imp. Phase Shifter | x1 | -4/Factory Adv. Thermal Shield | x2 | -4/Factory Exp. Hacking Suite | x1 | -4/Factory Adv. Reaction Control System | x1 | -4/Factory System Purifier | x1 | -4/Factory Adv. Focal Shield | x2 | -4/Factory Imp. Shock Absorption System | x1 | -4/Factory P-80 Master | x2 | -4/Armory H-77 Assassin | x2 | -4/Armory | Preloaded M-36 Artificer | x1 | -4/Armory H-77 Assassin | x2 | -4/Armory | Preloaded M-36 Artificer | x1 | -4/Armory H-77 Assassin | x2 | -4/Armory | Preloaded Exp. Q-thruster | x1 | -3/Research Exp. Q-thruster | x1 | -3/Research Mni. Fusion Reactor | x1 | -3/Research Exp. Q-thruster | x1 | -3/Research Exp. Q-thruster | x1 | -2/Research Exp. Q-thruster | x1 | -2/Research Thermal Barrier | x1 | -2/Research Cld. Q-thruster | x1 | -2/Testing Alien Tech Used ----------------- Core Expander Integrated Reactor Integrated Dissipator Subatomic Replicator Matter Drive Terrabomb High-powered Transdimensional Reconstructor Dimensional Node Initializer Core Regenerator Integrated Heat Negator Integrated Singularity Reactor Integrity Redistributor Core Membrane LRC Storage LRC Energy Well Achievements -------------- Artifact Hunter Epsilon Run Everyone Must Die True Flier Challenges ------------ None RPGLIKE | -11 -10 -10 -10 -9 -8 -7 -7 -7 -7 -6 -6 -6 -6 -6 -6 -6 -5 -5 -5 -5 -5 -5 -5 -4 -4 -4 -4 -4 -4 -3 -3 -2 -2 -2 -1 --------- Run | Scr Mat Min Exi Min Mat Fac Low Low Dat Pro Fac Was Fac Low Low Zio Pro Fac Was Fac Upp Upp Zhi Pro Fac Was Fac Arm Lab Res Qua Res Tes Sec Acc Levels Raised 36 | . . . 1 1 5 5 . 1 . 3 3 . 1 . . . 1 2 . 1 . . . 1 1 . . 1 1 2 . 2 . 2 2 XP Earned 61114 | 6000 900 500 200 1690 8065 7350 710 754 453 3568 4919 46 1236 254 311 105 1085 2917 32 1102 269 193 77 1036 1639 32 1051 1041 527 3262 580 2096 936 2213 3965 XP Spent 59850 | 990 . . 6510 1500 7200 7300 . 2000 . 4500 3000 . 2600 . . . 1850 3050 . 1350 . . . 270 2350 . . 2000 . 2880 . 4600 . 2975 2925 Upgrades 92 | 5 . . 13 3 10 8 . 1 . 8 3 . 1 . . . 2 7 . 2 . . . 1 3 . . 1 . 4 . 2 . 8 10 Power Slot 2 | . . . . . 1 . . . . . . . . . . . . . . . . . . . . . . . . 1 . . . . . Propulsion Slot 4 | . . . 1 . 1 1 . . . . . . . . . . . . . . . . . . . . . . . 1 . . . . . Utility Slot 9 | 1 . . 2 . 1 1 . 1 . . 1 . 1 . . . . . . . . . . . . . . . . . . 1 . . . Weapon Slot 5 | . . . 3 . . 1 . . . . . . . . . . . . . . . . . . . . . . . . . 1 . . . Heat Dissipation 16 | . . . 3 . . . . . . 5 . . . . . . . 2 . 1 . . . 1 2 . . . . 2 . . . . . Energy Generation 5 | . . . . 1 . 1 . . . . . . . . . . 2 1 . . . . . . . . . . . . . . . . . Matter Storage 2 | . . . . . . . . . . . . . . . . . . . . . . . . . . . . . . . . . . . 2 Mass Support 5 | 1 . . 1 1 1 . . . . . . . . . . . . . . . . . . . . . . . . . . . . 1 . Inventory Capacity 8 | 1 . . 1 . . 1 . . . 3 . . . . . . . . . . . . . . 1 . . 1 . . . . . . . Sight Range 4 | . . . . 1 3 . . . . . . . . . . . . . . . . . . . . . . . . . . . . . . Sensor Range 15 | . . . . . . . . . . . . . . . . . . . . . . . . . . . . . . . . . . 7 8 Terrain Scan Density 5 | 2 . . . . . . . . . . . . . . . . . 3 . . . . . . . . . . . . . . . . . Ranged Accuracy 2 | . . . . . 1 1 . . . . . . . . . . . . . . . . . . . . . . . . . . . . . Hack Attack % 3 | . . . 1 . 2 . . . . . . . . . . . . . . . . . . . . . . . . . . . . . . Hack Defense % 3 | . . . 1 . . 2 . . . . . . . . . . . . . . . . . . . . . . . . . . . . . KI Damage % 4 | . . . . . . . . . . . 2 . . . . . . 1 . 1 . . . . . . . . . . . . . . . Protomatter Created 21518 | . . 65 213 40 484 714 74 30 . 415 1324 . 909 298 345 . 327 1565 . 961 244 190 260 490 678 199 656 1376 72 2357 353 1155 . 2180 3544 Integrity Restored 7752 | . . 94 8 119 247 243 28 . . 177 292 . 349 65 . . 152 540 . 296 28 181 . 196 489 . 118 262 111 854 315 645 199 856 888 Core 5242 | . . 69 . 105 104 180 24 . . 127 213 . 254 50 . . 118 391 . 229 28 126 . 151 387 . 93 201 70 571 236 401 181 387 546 Parts 2510 | . . 25 8 14 143 63 4 . . 50 79 . 95 15 . . 34 149 . 67 . 55 . 45 102 . 25 61 41 283 79 244 18 469 342 Protomatter Decayed 19274 | . . 75 210 20 394 560 63 30 . 591 1218 . 843 275 345 . 274 1460 . 910 211 127 260 420 537 99 614 1293 . 2105 130 699 25 1503 3983 Game ------ Seed FlightResetTendrils Manual? 0 Play Time 19:14:02 Cumulative 204.3 hours Start 2021.06.15 @ 19:28:59 End 2021.06.16 @ 21:28:00 Sessions 1 Manual Loads 0 Difficulty Explorer Special Mode Winter2019/RPGLIKE Game No. 34 Rogue 12 Adventurer 0 Explorer 22 Win Type 0 Total 3 Types 1/0/2/0/0/0/0/0/0 Lore% 73 Gallery% 82 Achievement% 69 Wizard Run 0 Options --------- ASCII 0 Keyboard 0 Movement Mouse Keybinds 0 Fullscreen 2 Font 24/Proggy Map View 76x50 Tactical HUD 1 Map Filters NONE Filters NONE Steam 1 RUN: eb52bc2f-cc6a-4379-85d5-7d9bdbb9ac9a